Cogmind - Beta 16.1 @@@ ROGUE MODE // 2026.01.05 @ 14:23:00 Player: H3-MLN Result: Destroyed by H-88 Terminator with KE Penetrator Performance ------------- Evolutions (8) 4000 Regions Visited (21) 4200 Robots Destroyed (237) 1185 Value Destroyed (10703) 10703 Prototype IDs (101) 2020 Alien Tech Used (2) 400 Bonus (23905) 23905 TOTAL SCORE: 46413 Bonus ------- Triggered High Security 2000 High Alert Combat Kills 3815 Follower Combat Kills 14291 Hunted by Unchained 1000 Destroyed Unchained 1000 Forged Quantum Companion 1000 Entered Garrisons 200 Used RIF Installer 500 Registered with UFD 300 Met Zhirov 300 Friendly Fire -501 Cogmind --------- Core Integrity 0/1450 Matter 300/300 Energy 100/100 System Corruption 7% Temperature Cool (0) Movement Hovering (70) Location -2/Research Parts ------- > --- POWER (2) -------- (None) > --- PROPULSION (7) --- Improved Gyrokinetic Inverter > --- UTILITY (12) ----- System Mapper > --- WEAPON (2) ------- Quantum Companion > --- INVENTORY (5) ---- Null Cannon Mini Smartbomb Launcher IN-MT5's Pitchfork "Insurrection" (10) IN-MT5's Pitchfork "Insurrection" (20) IN-MT5's Pitchfork "Insurrection" (20) Peak State ------------ > --- POWER ------------ Micro Antimatter Reactor Micro Antimatter Reactor > --- PROPULSION ------- Improved Antigrav System Cooled Nuclear Pulse Thruster Impulse Thruster Impulse Thruster Array Impulse Thruster Array > --- UTILITY ---------- Large Storage Unit Gravity Neutralizer Experimental Optical Array Advanced Sensor Array Experimental Signal Interpreter Advanced Transmission Jammer Improved Hacking Suite Advanced Hacking Suite Advanced System Shield Advanced System Shield > --- WEAPON ----------- Null Cannon Quantum Companion > --- INVENTORY -------- Advanced Remote Shield System Mapper Advanced Trap Extractor Transdimensional Reconstructor Warp Gun Mini Smartbomb Launcher Z-bomb Delivery System Advanced Datajack CPS Tube IN-MT5's Pitchfork "Insurrection" IN-MT5's Pitchfork "Insurrection" IN-MT5's Pitchfork "Insurrection" IN-MT5's Pitchfork "Insurrection" IN-MT5's Pitchfork "Insurrection" IN-MT5's Pitchfork "Insurrection" [Rating: 164] Favorites ----------- Power Subdweller Power Source Engine Subdweller Power Source Power Core Meta Core Reactor Micro Antimatter Reactor Propulsion Cooled Cesium-ion Thruster Treads Light Treads Wheel Subdweller Monowheel Hover Unit Cooled Gravmag System Flight Unit Cooled Cesium-ion Thruster Utility Advanced Hacking Suite Device Advanced Transmission Jammer Storage Large Storage Unit Processor A0-MCA's Component Scanner Hackware Advanced Hacking Suite Protection Improved Light Armor Plating Weapon Companion Sword Energy Gun Subdweller Laser Energy Cannon Subdweller Beam Cannon Ballistic Gun Flak Gun Ballistic Cannon Slug Cannon Launcher Mini Smartbomb Launcher Special Weapon Multitool Impact Weapon Impact Mace Slashing Weapon Companion Sword Special Melee Weapon Advanced Datajack Build | -11 -10 -10 -7 -7 -5 -5 -5 -5 -5 -5 -5 -5 -4 -4 -4 -4 -4 -4 -3 -3 -2 ------- Run | Yrd Mat Sub Rec Scr Fac Was Fac Gar Fac Upp Upp Zhi Pro Fac Was Fac Arm Lab Res Tes Res Slots Evolved 16 | . . . . . 10 . . . . . . . . 2 . . . . 2 . 2 Power 1 | . . . . . 1 . . . . . . . . . . . . . . . . Propulsion 5 | . . . . . 3 . . . . . . . . 1 . . . . 1 . . Utility 10 | . . . . . 6 . . . . . . . . 1 . . . . 1 . 2 Weapon . | . . . . . . . . . . . . . . . . . . . . . . Parts Attached 203 | 8 1 17 10 10 24 1 7 3 12 . 1 5 4 20 . 19 4 1 6 31 19 Power 21 | 1 . 1 . 1 2 . . . 3 . . 2 . 1 . 2 . . 1 4 3 Engine 9 | 1 . 1 . . 1 . . . 1 . . 1 . 1 . 1 . . . . 2 Core 5 | . . . . 1 1 . . . 2 . . . . . . 1 . . . . . Reactor 7 | . . . . . . . . . . . . 1 . . . . . . 1 4 1 Propulsion 50 | 2 . 5 . 2 2 . . . 1 . . 3 2 6 . 3 . . 3 11 10 Treads 4 | 1 . 2 . . . . . . . . . . . . . . . . . . 1 Leg . | . . . . . . . . . . . . . . . . . . . . . . Wheel 4 | 1 . 3 . . . . . . . . . . . . . . . . . . . Hover 21 | . . . . . . . . . . . . 3 2 1 . . . . . 7 8 Flight 21 | . . . . 2 2 . . . 1 . . . . 5 . 3 . . 3 4 1 Utility 82 | 2 . 1 5 4 17 1 4 2 8 . 1 . 1 11 . 10 . . 1 8 6 Device 25 | 1 . 1 1 1 3 . 2 . 3 . . . . 5 . 2 . . 1 4 1 Storage 10 | 1 . . 1 1 2 . . . 1 . . . . 1 . 1 . . . 1 1 Processor 14 | . . . . 1 6 1 . . . . 1 . . 1 . 2 . . . 1 1 Hackware 27 | . . . . 1 5 . 2 2 4 . . . . 4 . 5 . . . 2 2 Protection 6 | . . . 3 . 1 . . . . . . . 1 . . . . . . . 1 Artifact . | . . . . . . . . . . . . . . . . . . . . . . Weapon 50 | 3 1 10 5 3 3 . 3 1 . . . . 1 2 . 4 4 1 1 8 . Energy Gun 6 | 2 . 1 . . 1 . . . . . . . . . . . . . . 2 . Energy Cannon 6 | . . 1 . . 1 . . 1 . . . . . . . . 1 . . 2 . Ballistic Gun 8 | 1 1 4 2 . . . . . . . . . . . . . . . . . . Ballistic Cannon 4 | . . 2 . . . . . . . . . . 1 . . . . . . 1 . Launcher 7 | . . 1 1 . . . 1 . . . . . . . . 2 1 . . 1 . Special Weapon 8 | . . . 1 2 . . 2 . . . . . . . . 1 1 1 . . . Impact Weapon 1 | . . . . . 1 . . . . . . . . . . . . . . . . Slashing Weapon 4 | . . 1 1 1 . . . . . . . . . . . . . . . 1 . Piercing Weapon . | . . . . . . . . . . . . . . . . . . . . . . Special Melee Weapon 6 | . . . . . . . . . . . . . . 2 . 1 1 . 1 1 . Unidentified Prototypes 11 | . . . . . . . . . . . . 1 . . . . . . . 8 2 Corrupted Parts 2 | . . . . 1 . . . . . . . . . . . . . 1 . . . System Corruption 8 | . . . . 2 . . . . . . . . . . . . . 6 . . . Parts Lost 76 | . . 3 . . . . . 3 3 1 . . 8 3 . 4 3 . 8 9 31 Power 12 | . . . . . . . . 1 1 . . . 1 1 . . 1 . 1 2 4 Propulsion 30 | . . 2 . . . . . 1 . . . . 3 . . . . . 5 6 13 Utility 25 | . . 1 . . . . . 1 2 1 . . 2 1 . 2 . . 1 . 14 Weapon 9 | . . . . . . . . . . . . . 2 1 . 2 2 . 1 1 . Highest Loss Streak 17 | . . 2 . . . . . 2 1 1 . . 3 2 . 1 1 . 6 2 17 To Critical Strikes 1 | . . . . . . . . . . . . . . . . . . . . . 1 Average Backups 13 | 3 6 5 16 15 7 14 13 14 14 13 14 13 13 13 14 12 14 15 14 14 14 Power . | . 1 . . . . . . . . . . . . . . . . . . . . Propulsion . | 1 2 1 1 1 . . . . . . . . . 1 1 . . . . . . Utility 5 | . . . 7 8 3 8 5 5 4 4 4 4 5 2 3 1 2 2 2 2 2 Weapon 5 | . 2 3 3 3 1 4 6 7 8 7 8 7 5 7 8 8 10 11 10 9 10 Tool/Special . | . . . . . . . . . . . . . . . . . . . . . . Unused Backups 102 | 1 . 12 4 27 8 . 16 . . . . 1 1 . . 10 9 . 5 1 7 Power 8 | . . 1 . 3 1 . 1 . . . . . . . . 1 1 . . . . Propulsion 16 | . . 2 . 5 1 . 3 . . . . . . . . 2 3 . . . . Utility 50 | 1 . 4 3 16 5 . 8 . . . . . 1 . . 4 4 . 4 . . Weapon 27 | . . 4 1 3 1 . 4 . . . . 1 . . . 3 1 . 1 1 7 Tool/Special 1 | . . 1 . . . . . . . . . . . . . . . . . . . Average Slot Usage (%) 88 | . 100 93 98 93 71 81 81 74 75 76 76 82 87 86 85 88 84 85 85 83 69 Engine 7 | . 14 14 14 12 . . . . 2 . . 2 2 1 . . . . . . . Core 2 | . . . . . 5 8 8 6 5 9 9 7 5 4 4 7 8 4 4 . . Treads 12 | . 14 20 28 24 . . . . . . . . . . . . . . . . . Hover 1 | . . . . . . . . . . . . 9 19 9 . . . . . 3 15 Flight 8 | . . . . 2 12 13 13 11 9 9 9 6 2 14 23 23 23 23 21 17 4 Device 5 | . 14 8 . . 5 8 12 7 10 13 14 14 13 8 9 8 9 9 13 13 6 Storage 8 | . 14 14 14 12 2 4 4 4 4 4 4 4 5 4 4 4 4 4 4 4 5 Processor 7 | . . . . . 25 24 21 21 17 13 17 13 10 11 14 14 14 14 13 9 11 Hackware 7 | . . . . . 6 13 13 14 19 20 15 14 15 16 19 18 19 19 17 18 16 Protection 5 | . . . 13 13 3 . . . . . . . . 1 . . . . . . . Ballistic Gun 1 | . 20 8 8 . . . . . . . . . . . . . . . . . . Ballistic Cannon 1 | . . 9 12 . . . . . . . . . 2 . . . . . . . . Special Weapon 3 | . . . . 10 . . . . . . . . . . . . . . . . . Slashing Weapon 6 | . . 1 1 13 4 4 4 4 4 4 4 4 5 4 4 4 4 4 4 3 4 Peak Build Rating 164 | 8 8 19 28 43 135 138 137 137 131 133 127 127 122 134 126 154 155 133 153 164 153 Average Rating 71 | 5 8 15 24 23 116 133 132 126 119 125 126 111 109 118 126 135 135 130 145 145 124 On Entrance 94 | . 8 8 19 26 43 135 130 131 118 126 123 127 109 91 126 126 136 130 130 99 134 Avg Prop Armor Cover (%) 7 | 15 12 11 . . 1 . . . . . . 2 1 2 . . . . . 10 16 Naked Turns 4 | . . . . 4 . . . . . . . . . . . . . . . . . Heaviest Build 105 | 14 14 27 105 93 41 39 47 45 41 41 37 41 51 45 33 51 44 32 56 56 50 Greatest Support 69 | 10 10 40 40 40 45 45 45 45 42 39 39 42 69 45 49 51 63 39 66 64 60 Greatest Overweight (x) 3 | 1 1 1 2 2 . . 1 1 1 1 . 1 1 3 . 1 . . 1 . 2 Average Overweight (x) . | . 1 . 1 1 . . . . . . . . . . . . . . . . . Largest Inventory Capacity 35 | 8 8 8 25 35 15 15 15 15 15 15 15 15 15 15 15 15 15 15 15 15 15 Average Capacity 17 | 7 8 8 23 22 9 15 15 15 15 15 15 15 15 15 15 15 15 15 15 15 14 Most Carried 25 | 6 8 8 25 25 15 15 15 15 15 15 15 15 15 15 15 15 15 15 15 15 15 Average Carried 14 | 4 7 7 19 17 8 15 14 14 14 14 15 14 14 14 15 14 14 14 14 14 14 Final Capacity 25 | 8 8 8 25 5 15 15 15 15 15 15 15 15 15 15 15 15 15 15 15 15 5 Final Carried 25 | 5 8 8 25 5 15 15 14 14 15 15 15 15 14 15 15 15 15 15 15 15 5 Class Distribution -------------------- 36% | Commander-Mutant 19% | Hacker-Ninja 17% | Mutant 11% | Hacker-Scout 4% | Hacker-Mutant 4% | Hacker-Sprinter Dominant Class ---------------- Mutant | -10/Materials Mutant | -10/Subcaves Mutant | -7/Recycling Commander-Mutant | -7/Scraptown Hacker-Scout | -5/Factory Hacker-Scout | -5/Waste Hacker-Scout | -5/Factory Hacker-Sprinter | -5/Garrison Hacker-Scout | -5/Factory Hacker-Ninja | -5/Upper Caves Hacker-Ninja | -5/Upper Caves Hacker-Mutant | -5/Zhirov Hacker-Mutant | -4/Proximity Caves Hacker-Mutant | -4/Factory Hacker-Ninja | -4/Waste Hacker-Ninja | -4/Factory Hacker-Ninja | -4/Armory Hacker-Ninja | -4/Lab Hacker-Ninja | -3/Research Hacker-Ninja | -3/Testing Wizard-Ninja | -2/Research Resources | -11 -10 -10 -7 -7 -5 -5 -5 -5 -5 -5 -5 -5 -4 -4 -4 -4 -4 -4 -3 -3 -2 ----------- Run | Yrd Mat Sub Rec Scr Fac Was Fac Gar Fac Upp Upp Zhi Pro Fac Was Fac Arm Lab Res Tes Res Matter Collected 7176 | 288 22 454 389 151 322 . 304 206 1324 88 60 325 229 276 . 859 326 . 242 941 370 Remotely . | . . . . . . . . . . . . . . . . . . . . . . Salvage Created 12268 | 149 218 496 714 25 867 . 1585 677 1029 39 235 325 240 711 . 1979 468 . 406 962 1143 Parts 478 | 8 11 26 25 4 23 . 44 17 33 5 . 3 6 32 . 84 14 . 28 56 59 Haulers Intercepted 14 | . . . . . 1 . 3 . 3 . . . . 2 . 3 . . 2 . . Recyclers Shooed 5 | 1 . . 2 . 1 . . . . . . . . 1 . . . . . . . Parts Field Recycled . | . . . . . . . . . . . . . . . . . . . . . . Retrieved Matter . | . . . . . . . . . . . . . . . . . . . . . . Parts Self-Destructed 17 | . . 9 . . . . . . . 3 . 2 3 . . . . . . . . Prevented . | . . . . . . . . . . . . . . . . . . . . . . Parts Restored . | . . . . . . . . . . . . . . . . . . . . . . Kills | -11 -10 -10 -7 -7 -5 -5 -5 -5 -5 -5 -5 -5 -4 -4 -4 -4 -4 -4 -3 -3 -2 ------- Run | Yrd Mat Sub Rec Scr Fac Was Fac Gar Fac Upp Upp Zhi Pro Fac Was Fac Arm Lab Res Tes Res Combat Hostiles Destroyed 143 | . 4 10 5 . 5 . 7 11 30 5 . . 3 4 . 21 11 . 8 10 9 Melee 49 | . . . . . 5 . 4 3 2 . . . 2 4 . 10 3 . . 8 8 Guns 8 | . 4 4 . . . . . . . . . . . . . . . . . . . Cannons 6 | . . 2 2 . . . . . . . . . . . . . 1 . . . 1 AOE 80 | . . 4 3 . . . 3 8 28 5 . . 1 . . 11 7 . 8 2 . Classes Destroyed 28 | 2 2 5 4 2 4 . 2 1 3 1 . . . . . 2 . . . . . Worker 9 | . . . 1 . 1 . 1 1 . . . . . . . 5 . . . . . Builder 7 | . . . . . 1 . 1 . . . . . . 1 . 1 . . 1 . 2 Tunneler 2 | 2 . . . . . . . . . . . . . . . . . . . . . Hauler 14 | . . . . . 1 . 3 . 3 . . . . 2 . 3 . . 2 . . Recycler 27 | 1 . . 8 . 3 . 7 . . . . . . 1 . 3 . . . 2 2 Carrier 1 | . . . . . . . . . . . . . . . . 1 . . . . . Mechanic 12 | . . . . . 1 . . . 8 . . . . . . 2 . . . . 1 Operator 9 | . . . . . . . 2 . . . . . . 1 . 2 1 . 1 2 . Drone 2 | . . . . . . . . . . 1 . . 1 . . . . . . . . Turret 1 | . . 1 . . . . . . . . . . . . . . . . . . . Watcher 13 | . 1 . . . . . 2 1 1 . . . . . . 2 . . 2 3 1 Swarmer 23 | . . . 1 . . . 3 3 1 4 . . . . . 3 3 . 5 . . Cutter 6 | . . . . . . . . 3 . . . . . . . . . . 3 . . Saboteur 2 | . . . . . . . . . 1 . . . . . . 1 . . . . . Grunt 26 | . 4 1 . . 1 . 1 4 5 . . . . . . 6 3 . . 1 . Brawler 3 | . . . . . . . . . 2 . . . . . . 1 . . . . . Duelist 5 | . . . . . . . 1 . 2 . . . . . . 1 1 . . . . Protector 7 | . . . 1 . . . . . 2 . . . . . . 2 2 . . . . Sentry 10 | . . 1 2 . 1 . . 1 . . . . . 3 . . . . . . 2 Specialist 1 | . . . . . . . . . 1 . . . . . . . . . . . . Hunter 19 | . . . 1 . . . 1 . 8 . . . 1 . . 2 1 . . 1 4 Programmer 28 | . . . . . 3 . 1 . 8 . . . 1 1 . 4 1 . . 6 3 Heavy 1 | . . . . . . . . . . . . . . . . 1 . . . . . Quarantine Guard 1 | . . . . . . . . . . . . . . . . . . . . 1 . Artisan 1 | . . 1 . . . . . . . . . . . . . . . . . . . Cobbler 1 | . . 1 . . . . . . . . . . . . . . . . . . . Subdweller 8 | . . 8 . . . . . . . . . . . . . . . . . . . Botcube 1 | . . . . 1 . . . . . . . . . . . . . . . . . Decomposer 5 | . . . . . . . . . . . . . 5 . . . . . . . . Packrat 3 | . . . . . . . . . . . 3 . . . . . . . . . . Tinkerer 1 | . . . . 1 . . . . . . . . . . . . . . . . . Best Kill Streak 13 | 2 3 3 6 . 3 . 5 4 13 5 . . 1 1 . 8 4 . 5 3 7 Combat Bots Only 10 | . 2 3 3 . 2 . 3 4 10 5 . . 1 1 . 5 4 . 5 3 3 Max Kills in Single Turn 5 | 1 1 2 4 1 1 . 3 5 4 3 1 . 1 1 . 2 3 . 3 2 1 Gunslinging . | . . . . . . . . . . . . . . . . . . . . . . Exploded 4 | . . 2 2 . . . 3 4 3 3 . . 1 . . 2 3 . 3 2 . Melee 1 | . . . . . 1 . 1 1 1 . . . 1 1 . 1 1 . . 1 1 Uniques/NPCs Destroyed 1 | . . . . . . . . . . . . . . . . . . . . 1 . CL-0N3 (-3/Testing) Combat | -11 -10 -10 -7 -7 -5 -5 -5 -5 -5 -5 -5 -5 -4 -4 -4 -4 -4 -4 -3 -3 -2 -------- Run | Yrd Mat Sub Rec Scr Fac Was Fac Gar Fac Upp Upp Zhi Pro Fac Was Fac Arm Lab Res Tes Res Hostile Shots Fired 948 | . 12 51 19 5 46 . 32 38 119 17 17 . 70 4 . 68 34 . 27 124 265 Missed 394 | . 4 16 9 2 31 . 18 15 41 12 9 . 24 2 . 40 16 . 12 55 88 Intercepted 1 | . . . . . . . . . 1 . . . . . . . . . . . . Deflected 8 | . . . . . . . . . . . . . . . . . . . . 3 5 Hits 554 | . 8 35 10 3 15 . 14 23 78 5 8 . 46 2 . 28 18 . 15 69 177 Melee 6 | . . . . . . . . . . . . . . . . . . . 6 . . Projectile 548 | . 8 35 10 3 15 . 14 23 78 5 8 . 46 2 . 28 18 . 9 69 177 AOE 4 | . . . . . . . . 1 2 . . . . . . . . . . . 1 Critical Strikes 33 | . 1 . . . . . . 1 4 . . . 2 . . 8 3 . 4 4 6 Damage Taken 11500 | 35 124 585 147 34 259 . 356 430 1410 68 149 8 779 194 . 761 403 . 608 1441 3709 Core 2875 | . 18 147 28 . 18 . 140 41 165 16 . 8 187 34 . 144 99 . 60 415 1355 Absorbed by Shields 388 | . . . . . 39 . 9 62 158 . . . . . . . . . . 120 . Core Remaining (%) 60 | 100 . . . 22 . . . . . . . . 42 . . . . 75 . 63 . Volleys Fired 238 | 13 16 43 38 3 3 . 4 4 40 3 . . 13 7 . 24 16 . 6 5 . Largest 2 | 2 2 2 2 1 1 . 1 1 1 1 . . 1 1 . 1 1 . 1 1 . Hottest 120 | 80 60 120 120 . 85 . 80 120 120 80 . . 120 120 . 120 120 . 120 120 . Shots Fired 302 | 18 31 77 45 3 3 . 4 4 40 3 . . 15 7 . 25 16 . 6 5 . Gun 113 | 18 31 59 3 . 2 . . . . . . . . . . . . . . . . Cannon 94 | . . 15 40 . 1 . . 1 1 . . . 13 7 . 8 4 . 1 3 . Launcher 84 | . . 3 2 . . . 1 3 39 3 . . 2 . . 16 8 . 5 2 . Special 11 | . . . . 3 . . 3 . . . . . . . . 1 4 . . . . Kinetic 127 | 8 20 55 38 . . . . . . . . . 6 . . . . . . . . Thermal 59 | . . 19 5 . 3 . . 1 1 . . . 7 7 . 8 4 . 1 3 . Explosive 84 | . . 3 2 . . . 1 3 39 3 . . 2 . . 16 8 . 5 2 . Electromagnetic 21 | 10 11 . . . . . . . . . . . . . . . . . . . . Piercing 6 | . . . . . . . 2 . . . . . . . . . 4 . . . . Robot Hit Streak 27 | 11 9 12 3 4 . . 7 . 26 . . . 27 . . 4 3 . 5 7 . Robot Miss Streak 7 | 1 7 2 5 . . . . . . . . . 1 . . 1 . . . . . Penetration Max . | . . . . . . . . . . . . . . . . . . . . . . Secondary Targets . | . . . . . . . . . . . . . . . . . . . . . . Autonomous 7 | . . . . . . . . . . . . . . . . . . . . 3 4 Shots Hit Robots 453 | 14 17 53 20 10 29 . 35 24 28 . 3 5 19 23 . 55 17 . 16 46 39 Core Hits 410 | 5 10 21 32 3 11 . 15 18 124 4 2 3 9 8 . 67 26 . 18 20 14 Critical Kills 2 | . . 1 1 . . . . . . . . . . . . . . . . . . Critical Parts Destroyed 10 | . . . 2 . . . 3 3 . . . . 2 . . . . . . . . Critical Strikes 31 | . . 2 3 . 2 . 4 3 . . . . 2 2 . 2 3 . 2 2 4 Destroy 6 | . . 1 3 . . . . . . . . . 2 . . . . . . . . Blast 1 | . . 1 . . . . . . . . . . . . . . . . . . . Smash 6 | . . . . . . . 3 3 . . . . . . . . . . . . . Impale 4 | . . . . . . . 1 . . . . . . . . . 3 . . . . Melee Attacks 519 | . . 2 1 8 55 . 48 59 14 . 3 5 19 26 . 82 24 . 18 100 55 Impact 63 | . . . . . 15 . 18 30 . . . . . . . . . . . . . Slashing 445 | . . 2 1 8 40 . 30 29 14 . 3 5 19 23 . 75 24 . 18 99 55 Piercing . | . . . . . . . . . . . . . . . . . . . . . . Sneak Attacks 93 | . . 2 1 7 10 . 14 1 3 . 3 . 5 11 . 20 1 . 3 6 6 Combat Hostiles 11 | . . . . . 3 . . . . . . . . 2 . 5 . . . . 1 Follow-up Attacks 14 | . . . . . 3 . . 7 . . . 1 . . . . . . . . 3 Damage Inflicted 41798 | 176 213 1013 1833 482 1866 . 2283 2149 9669 464 288 408 1089 1202 . 7232 2712 . 1609 3872 3238 Guns 911 | 147 213 506 45 . . . . . . . . . . . . . . . . . . Cannons 1288 | . . 106 485 . . . . . . . . . 37 . . 40 . . . 221 399 Explosions 20094 | 29 . 257 1217 . . . 186 771 9106 464 . . 204 . . 4448 2078 . 830 504 . Melee 19421 | . . 144 86 482 1866 . 2066 1378 563 . 288 408 848 1202 . 2744 581 . 779 3147 2839 Ramming . | . . . . . . . . . . . . . . . . . . . . . . Kinetic 1010 | 47 68 383 475 . . . . . . . . . 37 . . . . . . . . Thermal 422 | 29 . 229 55 . . . . . . . . . . . . 109 . . . . . Explosive 19996 | . . 257 1217 . . . 186 771 9106 464 . . 204 . . 4379 2078 . 830 504 . Electromagnetic 245 | 100 145 . . . . . . . . . . . . . . . . . . . . Impact 1696 | . . . . . 157 . 1008 531 . . . . . . . . . . . . . Slashing 17725 | . . 144 86 482 1709 . 1058 847 563 . 288 408 848 1202 . 2744 581 . 779 3147 2839 Piercing 84 | . . . . . . . 31 . . . . . . . . . 53 . . . . Phasic 620 | . . . . . . . . . . . . . . . . . . . . 221 399 Highest Corruption 14 | . . 1 2 2 2 8 8 8 13 13 14 14 14 . 5 5 6 12 1 10 7 Average Corruption 5 | . . 1 1 2 1 4 8 8 9 13 13 14 14 . 5 5 5 7 1 6 4 Corruption Purged 1 | . . . . . . . . . . . . . . . . . . . . 1 . Corruption Blocked 1 | . . . . . . 1 . . . . . . . . . . . . . . . Effects 293 | . . 10 34 . 3 . 33 23 46 6 7 5 14 . . 46 39 1 . 25 1 Message Errors 75 | . . 1 7 . 1 . 12 6 10 2 4 . 3 . . 14 6 . . 9 . Matter Fused 72 | . . 4 8 . . . 8 5 12 1 1 2 5 . . 12 9 . . 5 . Heat Flow Errors 31 | . . 2 2 . . . 4 5 4 1 . . 1 . . 3 6 . . 2 1 Energy Discharges 41 | . . . 6 . 1 . 6 3 9 . . 1 1 . . 4 5 . . 5 . Parts Rejected 5 | . . . . . . . . 1 . 1 . . . . . 3 . . . . . Parts Fused 4 | . . . . . . . . 1 1 1 . . . . . . . . . 1 . Data Loss (minor) 32 | . . . 4 . 1 . 2 2 3 . 1 2 1 . . 7 7 . . 2 . Data Loss (major) 10 | . . 1 1 . . . . . 3 . 1 . . . . 2 2 . . . . Misfires 6 | . . 2 1 . . . . . . . . . 2 . . 1 . . . . . Alerts 11 | . . . 3 . . . 1 . 2 . . . . . . . 4 1 . . . Misdirections 4 | . . . . . . . . . 2 . . . 1 . . . . . . 1 . Weapon Failures 2 | . . . 2 . . . . . . . . . . . . . . . . . . Overload Shots . | . . . . . . . . . . . . . . . . . . . . . . Overflow Damage 4372 | . . 44 163 118 269 . 764 437 237 40 80 157 286 173 . 267 260 . 117 328 632 Projectiles 74 | . . . 21 . . . . . . . . . . . . . . . . 38 15 Explosions 829 | . . . 86 . . . 22 81 210 40 . . . . . 207 122 . 50 11 . Melee 3469 | . . 44 56 118 269 . 742 356 27 . 80 157 286 173 . 60 138 . 67 279 617 Knockbacks 8 | . . . 2 . 1 . 3 . . . . . 2 . . . . . . . . Impact 4 | . . . . . 1 . 3 . . . . . . . . . . . . . . Kinetic 4 | . . . 2 . . . . . . . . . 2 . . . . . . . . Secondary . | . . . . . . . . . . . . . . . . . . . . . . Self-Inflicted Damage 174 | 35 . . 14 . . . . . . . . . . . . . . . 125 . . Shots 4 | 1 . . 1 . . . . . . . . . . . . . . . 2 . . Rammed 1 | . . . 1 . . . . . . . . . . . . . . . . . . Targets Rammed 1 | . . . 1 . . . . . . . . . . . . . . . . . . Kicked . | . . . . . . . . . . . . . . . . . . . . . . Crushed . | . . . . . . . . . . . . . . . . . . . . . . Highest Temperature 397 | 86 103 218 228 . 50 . 260 217 397 195 . . 174 192 214 318 280 . 79 267 227 Average Temperature 80 | 39 45 52 74 . 8 . 87 75 96 72 . . 61 94 161 106 89 . 35 106 41 Received Heat Transfer 943 | . 87 129 12 . 68 . 15 122 230 9 . . . 9 . 24 73 . . 63 102 Siege Activations . | . . . . . . . . . . . . . . . . . . . . . . Martial Activations . | . . . . . . . . . . . . . . . . . . . . . . Shielding Activations . | . . . . . . . . . . . . . . . . . . . . . . Robots Disrupted 4 | . . . . . . . 1 . . . . . . 1 . 1 . . . . 1 Combat Hostiles 3 | . . . . . . . 1 . . . . . . . . 1 . . . . 1 Robots Corrupted 6 | . . . . . . . 4 2 . . . . . . . . . . . . . Combat Hostiles . | . . . . . . . . . . . . . . . . . . . . . . Parts Fried 19 | 3 . . . . . . 15 1 . . . . . . . . . . . . . Impact Corruptions 26 | . . . . . . . 17 9 . . . . . . . . . . . . . Robots Melted . | . . . . . . . . . . . . . . . . . . . . . . Combat Hostiles . | . . . . . . . . . . . . . . . . . . . . . . Parts Melted 2 | . . . . . . . 1 . . . . . . . . . 1 . . . . Heat Transferred 498 | 50 . 287 74 . . . . . . . . . . . . 87 . . . . . Parts Sabotaged . | . . . . . . . . . . . . . . . . . . . . . . Parts Stolen . | . . . . . . . . . . . . . . . . . . . . . . Parts Stripped . | . . . . . . . . . . . . . . . . . . . . . . Power Chain Reactions 1 | 1 . . . . . . . . . . . . . . . . . . . . . Alert | -11 -10 -10 -7 -7 -5 -5 -5 -5 -5 -5 -5 -5 -4 -4 -4 -4 -4 -4 -3 -3 -2 ------- Run | Yrd Mat Sub Rec Scr Fac Was Fac Gar Fac Upp Upp Zhi Pro Fac Was Fac Arm Lab Res Tes Res Maximum Alert Level 5 | . . . . . 1 . 5 5 5 . . . . . . 5 5 . 1 1 . Low Security (%) 52 | 100 100 . 100 . 98 100 33 . . . . . . 100 100 19 . . 80 68 100 Level 1 7 | . . . . . 1 . 12 . . . . . . . . 18 . . 19 31 . Level 2 1 | . . . . . . . 16 . . . . . . . . 1 . . . . . Level 3 3 | . . . . . . . 3 . . . . . . . . 22 . . . . . Level 4 7 | . . . . . . . 22 23 27 . . . . . . 11 . . . . . Level 5 12 | . . . . . . . 8 76 11 . . . . . . . 57 . . . . High Security 14 | . . . . . . . 3 . 60 . . . . . . 24 42 . . . . Max Security . | . . . . . . . . . . . . . . . . . . . . . . Sterilizations 1 | . . . . . . . . . . . . . . . . 1 . . . . . Peak Influence 5414 | 5 77 . 154 . 238 56 1913 2578 5414 . . . . 190 22 4440 4202 . 242 350 178 Initial 2165 | . . . 111 . . 56 32 1339 1353 . . . . . 7 15 2165 . . 93 177 Average 973 | . 16 . 62 . 38 53 705 1980 2872 . . . . 50 14 1150 2836 . 114 179 84 Influence Increases 23138 | 15 118 283 437 . 929 . 2851 1449 4933 155 . 10 65 543 15 6138 3147 . 562 952 536 Destroy 0b10 Robot/C 9420 | . 80 80 120 . 120 . 1120 600 2040 80 . . 40 220 . 2640 1360 . 320 340 260 Destroy 0b10 Robot/NC 665 | 15 5 . 70 . 40 . 95 20 105 5 . 10 10 30 . 140 20 . 30 35 35 Destroy Leader 1632 | . 22 . . . 34 . 274 40 314 10 . . . 76 . 454 200 . 58 76 74 Allied During Kill 6921 | . . 8 28 . 3 . 1063 535 1618 . . . . 52 . 2292 1250 . 38 21 13 Trap Triggered on 0b10 100 | . . . . . 50 . . . 40 . . . . . . . . . . . 10 Successful Hack 521 | . 11 . 77 . 72 . 85 17 53 . . . . 52 . 3 15 . 30 100 6 Select Force Hacks 90 | . . . 90 . . . . . . . . . . . . . . . . . . Disable Machine 675 | . . . 15 . 45 . 30 . 240 . . . . 15 . 90 75 . . 165 . Anti-Garrison Action 100 | . . . . . . . . 100 . . . . . . . . . . . . . Destroy Structure 1014 | . . . 37 . 40 . 34 107 268 . . . . 8 . 244 152 . 56 50 18 Partial Spotted 480 | . . . . . 75 . 30 15 75 . . . . 90 15 60 . . 30 60 30 Lose Combat Pursuer 1320 | . . 195 . . 450 . 120 15 180 60 . . 15 . . 15 75 . . 105 90 Miscellaneous 200 | . . . . . . . . . . . . . . . . 200 . . . . . Influence Decreases 23114 | 15 118 50 594 76 767 116 984 784 2097 2094 751 2734 65 522 14 1740 3365 4202 395 802 829 Entered New Map 14198 | . . . 122 76 . 106 14 574 1225 2004 661 2724 . . 14 7 2255 4202 . 74 140 Time Decay 4052 | 15 118 50 452 . 413 10 440 . 262 80 90 10 40 302 . 533 380 . 185 478 194 Search Patrol Dispatched 100 | . . . . . 100 . . . . . . . . . . . . . . . . Lost Part 650 | . . . . . . . . 30 30 10 . . 25 20 . 40 30 . 80 90 295 Lost Ally 3006 | . . . 20 . 46 . 380 180 580 . . . . 50 . 560 700 . 130 160 200 Purge Threat 1108 | . . . . . 208 . 150 . . . . . . 150 . 600 . . . . . Squads Dispatched 159 | . . . . . 10 . 25 . 38 . . . . 3 . 31 28 . 8 11 5 Investigation 33 | . . . . . 5 . 9 . 4 . . . . 2 . 5 1 . 2 2 3 Extermination 21 | . . . . . 3 . 5 . 1 . . . . 1 . 5 . . 1 4 1 Reinforcement 22 | . . . . . 2 . 4 . 1 . . . . . . 4 . . 5 5 1 Assault 77 | . . . . . . . 1 . 32 . . . . . . 17 27 . . . . Garrison 6 | . . . . . . . 6 . . . . . . . . . . . . . . Intercept . | . . . . . . . . . . . . . . . . . . . . . . Searches Triggered 1 | . . . . . 1 . . . . . . . . . . . . . . . . Unchained Authorized 1 | . . . . . . . . . . . . . . . . . . . . 1 . Construction Impeded 2 | . . . . . . . 1 . 1 . . . . . . . . . . . . Haulers Reinforced 6 | . . . . . 1 . 1 . . . . . . . . 1 . . 2 1 . Active Scanning Responses . | . . . . . . . . . . . . . . . . . . . . . . Cargo Convoy Interrupts 2 | . . . . . . . 1 . . . . . . . . 1 . . . . . Stealth | -11 -10 -10 -7 -7 -5 -5 -5 -5 -5 -5 -5 -5 -4 -4 -4 -4 -4 -4 -3 -3 -2 --------- Run | Yrd Mat Sub Rec Scr Fac Was Fac Gar Fac Upp Upp Zhi Pro Fac Was Fac Arm Lab Res Tes Res Distress Signals 22 | . . . . 1 2 . 4 . 3 . . . . . . 5 2 . . . 5 Communications Jammed 900 | . . . . . . . 7 . 1 . . . . . . 456 430 . 2 . 4 Distress Signals 893 | . . . . . . . . . 1 . . . . . . 456 430 . 2 . 4 Times Spotted 545 | . 9 22 8 12 36 4 42 24 105 8 3 . 7 6 2 100 68 . 19 32 38 Peak Tracking Total 15 | . 2 3 5 12 12 4 9 6 15 6 3 . 4 2 2 8 15 . 8 6 8 Tactical Retreats 41 | . . 1 . 1 10 . 4 1 8 2 . . 1 . . 1 3 . . 4 5 Traps | -11 -10 -10 -7 -7 -5 -5 -5 -5 -5 -5 -5 -5 -4 -4 -4 -4 -4 -4 -3 -3 -2 ------- Run | Yrd Mat Sub Rec Scr Fac Was Fac Gar Fac Upp Upp Zhi Pro Fac Was Fac Arm Lab Res Tes Res Traps Triggered 28 | . . . . . 4 . 1 4 7 . . . . 3 . 3 2 . 1 3 . Indirectly . | . . . . . . . . . . . . . . . . . . . . . . Trap Hack Attempts 34 | . . . . . . . . . . . . . . 7 . 17 . . 10 . . Triggered . | . . . . . . . . . . . . . . . . . . . . . . Disarmed . | . . . . . . . . . . . . . . . . . . . . . . Reprogrammed 29 | . . . . . 6 . . . 9 . . . . 3 . 4 . . 1 . 6 Reused 11 | . . . . 1 5 . . . 4 . . . . . . . . . . . 1 Traps Extracted 8 | . . . . . . . . . . . . . . 3 . 4 . . 1 . . Installed 5 | . . 1 . 1 . . . . . . . . . . . 3 . . . . . Triggered 10 | . . . . . 5 . . . 4 . . . . . . . . . . . 1 Most Traps Carried 4 | . . 1 . 2 . . . . . . . . . 3 3 3 3 3 4 4 4 Machines | -11 -10 -10 -7 -7 -5 -5 -5 -5 -5 -5 -5 -5 -4 -4 -4 -4 -4 -4 -3 -3 -2 ---------- Run | Yrd Mat Sub Rec Scr Fac Was Fac Gar Fac Upp Upp Zhi Pro Fac Was Fac Arm Lab Res Tes Res Machines Disabled 56 | . . 3 1 4 3 . 2 2 16 . . . . 1 . 8 5 . . 11 . Max in Single Turn 5 | . . 1 1 1 1 . 1 1 3 . . . . 1 . 5 1 . . 1 . Garrison Access 9 | . . . . . 2 . 1 . 1 . . . . . . 3 . . . 1 1 Garrison Relay 2 | . . . . . . . . 2 . . . . . . . . . . . . . Machines Repaired . | . . . . . . . . . . . . . . . . . . . . . . Machines Dismantled . | . . . . . . . . . . . . . . . . . . . . . . Machines Sabotaged . | . . . . . . . . . . . . . . . . . . . . . . Overloaded Fab Kills . | . . . . . . . . . . . . . . . . . . . . . . Hacking | -11 -10 -10 -7 -7 -5 -5 -5 -5 -5 -5 -5 -5 -4 -4 -4 -4 -4 -4 -3 -3 -2 --------- Run | Yrd Mat Sub Rec Scr Fac Was Fac Gar Fac Upp Upp Zhi Pro Fac Was Fac Arm Lab Res Tes Res Machines Accessed 122 | . 5 1 9 2 20 . 16 3 7 . . 4 . 12 . 18 3 . 6 12 4 Terminals 61 | . 5 . 5 . 11 . 6 3 1 . . . . 7 . 8 2 . 4 7 2 Fabricators 22 | . . . . . 5 . 5 . 4 . . . . 2 . 4 . . 1 1 . Repair Stations 3 | . . . . . 1 . . . . . . . . 1 . . . . . 1 . Recycling Units 12 | . . . 4 . . . 3 . 1 . . . . 1 . 1 1 . . . 1 Scanalyzers 7 | . . . . . 1 . . . . . . . . 1 . 2 . . 1 2 . Garrison Access 10 | . . . . . 2 . 2 . 1 . . . . . . 3 . . . 1 1 Total Hacks 424 | . 19 1 28 2 76 . 69 11 29 . . 17 . 40 . 50 9 . 24 35 14 Successful 257 | . 8 1 17 2 41 . 43 3 20 . . 17 . 28 . 31 4 . 17 13 12 Failed 166 | . 10 . 11 . 35 . 26 8 9 . . . . 12 . 19 5 . 7 22 2 Catastrophic 30 | . . . 3 . 9 . 7 2 1 . . . . . . 3 . . . 5 . Database Lockouts 1 | . 1 . . . . . . . . . . . . . . . . . . . . Manual 185 | . 8 . 16 . 32 . 36 8 8 . . . . 17 . 22 4 . 13 17 4 Terminals 234 | . 19 . 16 . 53 . 29 11 7 . . . . 21 . 28 6 . 21 15 8 Fabricators 80 | . . . . . 14 . 17 . 18 . . . . 10 . 12 . . 1 8 . Repair Stations 5 | . . . . . 3 . . . . . . . . 1 . . . . . 1 . Recycling Units 42 | . . . 12 . . . 17 . 2 . . . . 3 . 1 3 . . . 4 Scanalyzers 23 | . . . . . 3 . . . . . . . . 5 . 3 . . 2 10 . Garrison Access 20 | . . . . . 3 . 6 . 2 . . . . . . 6 . . . 1 2 Terminal Hacks 94 | . 8 1 5 2 13 . 11 2 2 . . 17 . 7 . 9 . . 6 4 7 Record 5 | . . . . . . . . . . . . 5 . . . . . . . . . Part Schematic 12 | . 1 . 4 . 1 . . . . . . 4 . . . . . . 1 1 . Robot Analysis 5 | . 1 . . . . . . . . . . 4 . . . . . . . . . Prototype ID Bank 6 | . 2 . . . . . . . . . . 4 . . . . . . . . . Open Door 2 | . . . . 1 . . . 1 . . . . . . . . . . . . . Branch Access Points 5 | . . . . . . . 1 . . . . . . 1 . 1 . . 1 . 1 Machine Index 1 | . . . . . . . . . . . . . . . . . . . 1 . . Terminal Index 5 | . . . 1 . 1 . . . . . . . . . . 1 . . 1 . 1 Fabricator Index 2 | . . . . . 1 . . . . . . . . . . . . . . . 1 Unreport Threat 9 | . . . . . 2 . 1 . . . . . . 1 . 5 . . . . . Locate Traps 12 | . 1 . . . 3 . 2 . . . . . . 3 . 1 . . . 1 1 Reprogram Traps 5 | . . . . . 1 . . . 2 . . . . . . . . . . . 2 Recall Investigation 2 | . . . . . . . 2 . . . . . . . . . . . . . . Recall Extermination 4 | . . . . . . . 2 . . . . . . . . . . . . 2 . Hauler Manifests 1 | . . . . . 1 . . . . . . . . . . . . . . . . Registered Components 5 | . . . . . 1 . 1 . . . . . . . . 1 . . 1 . 1 Registered Prototypes 1 | . . . . . . . . . . . . . . . . . . . 1 . . Zone Layout 9 | . 3 . . . 2 . 2 . . . . . . 2 . . . . . . . Garrison Registry 1 | . . . . . . . . 1 . . . . . . . . . . . . . Proto ID Catalog 2 | . . 1 . 1 . . . . . . . . . . . . . . . . . Fabricator Hacks 41 | . . . . . 7 . 10 . 10 . . . . 6 . 6 . . . 2 . Network Status 3 | . . . . . 1 . 1 . 1 . . . . . . . . . . . . Load Schematic 23 | . . . . . 4 . 6 . 5 . . . . 3 . 4 . . . 1 . Build 15 | . . . . . 2 . 3 . 4 . . . . 3 . 2 . . . 1 . Repair Station Hacks 4 | . . . . . 2 . . . . . . . . 1 . . . . . 1 . Scan Component 2 | . . . . . 1 . . . . . . . . . . . . . . 1 . Repair 1 | . . . . . 1 . . . . . . . . . . . . . . . . Refit 1 | . . . . . . . . . . . . . . 1 . . . . . . . Recycling Unit Hacks 11 | . . . 3 . . . 2 . 1 . . . . 1 . 1 1 . . . 2 Report Inventory 7 | . . . 2 . . . . . 1 . . . . 1 . 1 1 . . . 1 Retrieve Components 4 | . . . 1 . . . 2 . . . . . . . . . . . . . 1 Scanalyzer 10 | . . . . . 1 . . . . . . . . 3 . 3 . . 2 1 . Insert Component 4 | . . . . . 1 . . . . . . . . 2 . 1 . . . . . Analyze 1 | . . . . . . . . . . . . . . 1 . . . . . . . Retrieve Study 5 | . . . . . . . . . . . . . . . . 2 . . 2 1 . Garrison Access Hacks 15 | . . . . . 2 . 2 . 2 . . . . . . 6 . . . 1 2 Unlock Access 1 | . . . . . . . 1 . . . . . . . . . . . . . . Seal Access 9 | . . . . . 2 . 1 . 1 . . . . . . 3 . . . 1 1 Coupler Status 5 | . . . . . . . . . 1 . . . . . . 3 . . . . 1 Unauthorized Hacks 82 | . . . 9 . 16 . 18 1 5 . . . . 10 . 6 3 . 9 4 1 Terminals 48 | . . . 6 . 11 . 8 1 . . . . . 7 . 4 1 . 8 2 . Track 5 | . . . . . 2 . . . . . . . . . . . 1 . . 2 . Assimilate 2 | . . . . . . . . . . . . . . . . 1 . . 1 . . Botnet 16 | . . . 2 . 3 . 2 1 . . . . . 2 . 2 . . 4 . . Operators 3 | . . . . . 1 . 1 . . . . . . . . 1 . . . . . Skim 22 | . . . 4 . 5 . 5 . . . . . . 5 . . . . 3 . . Fabricators 18 | . . . . . 5 . 3 . 4 . . . . 2 . 2 . . 1 1 . Prioritize 6 | . . . . . 1 . . . 2 . . . . 1 . 1 . . . 1 . Haulers 1 | . . . . . . . . . . . . . . 1 . . . . . . . Recompile 11 | . . . . . 4 . 3 . 2 . . . . . . 1 . . 1 . . Repair Stations . | . . . . . . . . . . . . . . . . . . . . . . Recycling Units 14 | . . . 3 . . . 6 . 1 . . . . 1 . . 2 . . . 1 Monitor 1 | . . . . . . . 1 . . . . . . . . . . . . . . Reject 1 | . . . . . . . 1 . . . . . . . . . . . . . . Recyclers 4 | . . . . . . . 1 . 1 . . . . 1 . . 1 . . . . Mask 5 | . . . . . . . 3 . . . . . . . . . 1 . . . 1 Tunnel 3 | . . . 3 . . . . . . . . . . . . . . . . . . Scanalyzers 1 | . . . . . . . . . . . . . . . . . . . . 1 . Researchers 1 | . . . . . . . . . . . . . . . . . . . . 1 . Garrison Access 1 | . . . . . . . 1 . . . . . . . . . . . . . . Reprogram 1 | . . . . . . . 1 . . . . . . . . . . . . . . Data Cores Recovered 4 | . . . . . . . 1 . . . . . . . . 1 . . 1 1 . Used 1 | . . . . . . . 1 . . . . . . . . . . . . . . Hacking Detections 76 | . 3 . 7 . 14 . 13 2 3 . . . . 5 . 11 3 . 3 9 3 Full Trace Events 9 | . . . 1 . 1 . 3 . . . . . . 2 . 1 . . . 1 . Feedback Events . | . . . . . . . . . . . . . . . . . . . . . . Feedback Blocked . | . . . . . . . . . . . . . . . . . . . . . . Robot Schematics Acquired 54 | . . . . . . . . . . . . . . . . . . . . 54 . Robots Built 3 | . . . . . . . . . 3 . . . . . . . . . . . . Authchips . | . . . . . . . . . . . . . . . . . . . . . . Time 56 | . . . . . . . . . 56 . . . . . . . . . . . . Total Robot Build Rating 18 | . . . . . . . . . 18 . . . . . . . . . . . . Part Schematics Acquired 16 | . 1 . 4 1 1 . . . . . . 4 . 1 . . . . 1 3 . Parts Built 14 | . . . . . 2 . 3 . 3 . . . . 3 . 2 . . . 1 . Authchips 10 | . . . . . 2 . 2 . 3 . . . . 2 . 1 . . . . . Time 1086 | . . . . . 228 . 228 . 227 . . . . 150 . 228 . . . 25 . Total Part Build Rating 68 | . . . . . 10 . 15 . 15 . . . . 13 . 10 . . . 5 . Part Studies Acquired 5 | . . . . . . . . . . . . . . . . 2 . . 2 1 . Parts Repaired 1 | . . . . . 1 . . . . . . . . . . . . . . . . Time 26 | . . . . . 26 . . . . . . . . . . . . . . . . Parts Recycled . | . . . . . . . . . . . . . . . . . . . . . . Recycled Matter . | . . . . . . . . . . . . . . . . . . . . . . Retrieved Matter . | . . . . . . . . . . . . . . . . . . . . . . Retrieved Components 15 | . . . 3 . . . 5 . . . . . . . . . . . . . 7 Parts Scanalyzed 1 | . . . . . 1 . . . . . . . . . . . . . . . . Part Schematics Acquired 1 | . . . . . . . . . . . . . . 1 . . . . . . . Parts Damaged 2 | . . . . . 1 . . . . . . . . 1 . . . . . . . Bothacking | -11 -10 -10 -7 -7 -5 -5 -5 -5 -5 -5 -5 -5 -4 -4 -4 -4 -4 -4 -3 -3 -2 ------------ Run | Yrd Mat Sub Rec Scr Fac Was Fac Gar Fac Upp Upp Zhi Pro Fac Was Fac Arm Lab Res Tes Res Used RIF Installer 1 | . . . . . . . . 1 . . . . . . . . . . . . . Robots Hacked 6 | . . . . . . . . . . . . . . 3 . 3 . . . . . Non-combat 6 | . . . . . . . . . . . . . . 3 . 3 . . . . . Combat . | . . . . . . . . . . . . . . . . . . . . . . Robot Hacks Applied 8 | . . . . . . . . . . . . . . 3 . 5 . . . . . find_chute 1 | . . . . . . . . . . . . . . 1 . . . . . . . ignore_repairs 1 | . . . . . . . . . . . . . . 1 . . . . . . . find_fabricator 2 | . . . . . . . . . . . . . . . . 2 . . . . . find_dsf 1 | . . . . . . . . . . . . . . 1 . . . . . . . purge_threat 1 | . . . . . . . . . . . . . . . . 1 . . . . . locate_traps 1 | . . . . . . . . . . . . . . . . 1 . . . . . formatsys_low 1 | . . . . . . . . . . . . . . . . 1 . . . . . Relay Couplers Released 14 | . . . . . . . . 9 . . . . . . . 3 . . . . 2 Machine Destruction 14 | . . . . . . . . 9 . . . . . . . 3 . . . . 2 Attached 3 | . . . . . . . . 1 . . . . . . . 1 . . . . 1 Fabnet Peak Effective % . | . . . . . . . . . . . . . . . . . . . . . . Robots Rewired 14 | . . . 6 . . . . 3 . . . . . 1 . . 4 . . . . Allies Hacked 12 | . . . . . . . . . 3 . . . . 1 . 3 1 . 1 2 1 Hacks Repelled 6 | . . . . . . . 2 . . . . . . 1 . . 1 . 2 . . Allies | -11 -10 -10 -7 -7 -5 -5 -5 -5 -5 -5 -5 -5 -4 -4 -4 -4 -4 -4 -3 -3 -2 -------- Run | Yrd Mat Sub Rec Scr Fac Was Fac Gar Fac Upp Upp Zhi Pro Fac Was Fac Arm Lab Res Tes Res Total Allies 185 | . . 1 6 2 1 . 35 3 24 . . . . 16 . 62 4 . 10 9 12 Largest Group 43 | . . 1 7 7 2 . 28 16 25 . . . . 7 . 43 34 . 5 3 2 Highest-Rated Group 472 | . . 40 169 255 101 . 407 387 403 . . . . 69 . 472 398 . 66 30 20 Highest-Rated Ally 112 | . . 40 40 72 64 . 112 112 112 . . . . 10 . 73 73 . 26 10 10 Total Orders 28 | . . 4 . 17 1 . . . . . . . . 1 . 1 1 . 3 . . STAY 15 | . . 2 . 9 . . . . . . . . . . . 1 1 . 2 . . FOLLOW 8 | . . 2 . 4 . . . . . . . . . 1 . . . . 1 . . GUARD 5 | . . . . 4 1 . . . . . . . . . . . . . . . . Ally Attacks 2580 | . . 19 28 21 15 . 369 114 510 . . . . 64 . 832 418 . 90 52 48 Total Damage 34985 | . . 241 268 600 277 . 4532 1745 7983 . . . . 825 . 10344 5796 . 1073 678 623 Kills 387 | . . 1 4 6 2 . 53 20 82 . . . . 8 . 126 63 . 8 9 5 Allies Corrupted 15 | . . . . . 1 . . . 2 . . . . 3 . 2 5 . 1 1 . Allies Melted . | . . . . . . . . . . . . . . . . . . . . . . Intel | -11 -10 -10 -7 -7 -5 -5 -5 -5 -5 -5 -5 -5 -4 -4 -4 -4 -4 -4 -3 -3 -2 ------- Run | Yrd Mat Sub Rec Scr Fac Was Fac Gar Fac Upp Upp Zhi Pro Fac Was Fac Arm Lab Res Tes Res Active Infowar (turns) 13956 | 20 588 1474 5 . 1087 26 1134 746 1434 164 191 111 329 867 16 2131 1543 4 465 1233 388 Optics 7906 | . . 666 5 . . . . . . . 148 111 329 867 16 2131 1543 4 465 1233 388 Sensors 9235 | . . . . . 989 26 1090 47 1433 164 191 111 236 254 16 1487 1419 4 422 1063 283 Structural 1936 | . . . . . . . 970 48 414 . . . . 494 . . . . . . 10 Seismic 1416 | 20 588 808 . . . . . . . . . . . . . . . . . . . Machine Analysis 5182 | . . . . . 1087 26 1134 746 1434 164 191 35 . . . . . . . . 365 Jamming 6856 | . . . . . . . 28 452 39 40 . . 238 852 16 2083 1324 . 465 1163 156 Robot Analysis Total 102 | . 1 . . . . . . . . . . 4 . . . . . . . 97 . Derelict Logs Recovered 11 | . . 3 . 2 . . . . . 2 2 . 2 . . . . . . . . Drone Launches . | . . . . . . . . . . . . . . . . . . . . . . Drone Recoveries . | . . . . . . . . . . . . . . . . . . . . . . Exploration | -11 -10 -10 -7 -7 -5 -5 -5 -5 -5 -5 -5 -5 -4 -4 -4 -4 -4 -4 -3 -3 -2 ------------- Run | Yrd Mat Sub Rec Scr Fac Was Fac Gar Fac Upp Upp Zhi Pro Fac Was Fac Arm Lab Res Tes Res Turns Passed 25770 | 117 588 2402 2178 8416 1245 26 1134 746 1434 164 191 111 329 867 16 2131 1543 4 465 1233 430 Spaces Moved 25295 | 70 229 1357 640 3826 2446 76 2134 602 2148 350 522 215 580 1672 81 3931 784 10 1081 2109 432 Core 15 | 13 . . . 2 . . . . . . . . . . . . . . . . . Treads 3585 | . . 784 640 2157 . . . . . . . . . . . . . . . . 4 Legs . | . . . . . . . . . . . . . . . . . . . . . . Wheels 859 | 57 229 573 . . . . . . . . . . . . . . . . . . . Hover 1632 | . . . . . . . . . . . . 128 580 763 . . . . . . 161 Flight 19204 | . . . . 1667 2446 76 2134 602 2148 350 522 87 . 909 81 3931 784 10 1081 2109 267 Fastest Speed 6 | 50 95 95 160 37 32 32 32 32 30 34 34 34 27 24 11 11 11 24 6 27 37 Average Speed 72 | 81 95 137 306 210 34 32 32 34 40 34 34 39 39 32 19 24 23 24 23 32 54 Slowest Speed 340 | 95 95 160 340 340 37 32 95 89 89 89 34 100 92 200 24 102 26 24 106 37 170 Overloaded Moves 262 | . . . . . . . . . 140 . . . 29 . 25 15 5 . 17 31 . Propulsion Burnouts . | . . . . . . . . . . . . . . . . . . . . . . Robots Hopped 107 | . . . . 1 9 . 11 . 3 . . . . 7 . 33 4 . 5 33 1 Potential Cave-ins . | . . . . . . . . . . . . . . . . . . . . . . Cave-ins Triggered . | . . . . . . . . . . . . . . . . . . . . . . Teleports 1 | . . . . . . . . . . . . . . . . . . . . . 1 Exploration Rate (%) 55 | 3 51 74 95 87 47 80 41 66 43 58 83 61 76 29 80 58 46 5 24 91 15 Regions Visited 21 Branch Regions 10 Pre-discovered Areas 11 | . . 1 3 1 1 . . . . . . 3 2 . . . . . . . . Known Exits Taken 11 | . . . . . . . 1 . 1 1 1 1 1 . . 1 1 1 1 1 . Unknown Exits Taken 5 | 1 1 1 1 1 . . . . . . . . . . . . . . . . . Scrap Searched 26 | . . 10 . 6 . . . . . 2 3 . 5 . . . . . . . . Spaces Dug 85 | . . . . . 19 . 5 19 1 . . . 5 4 . 7 4 . 1 14 6 Terrain Destroyed 673 | . . 16 51 . 19 . 16 36 114 45 . . 24 6 . 188 103 . 27 22 6 Melee 69 | . . . . . 18 . 5 18 . . . . . . . 5 3 . 1 13 6 Projectile 37 | . . 1 15 . 1 . . 1 1 . . . 6 6 . 3 2 . . 1 . AOE 567 | . . 15 36 . . . 11 17 113 45 . . 18 . . 180 98 . 26 8 . Terrain Rammed . | . . . . . . . . . . . . . . . . . . . . . . Walls Destroyed . | . . . . . . . . . . . . . . . . . . . . . . Machines Disabled . | . . . . . . . . . . . . . . . . . . . . . . Actions | -11 -10 -10 -7 -7 -5 -5 -5 -5 -5 -5 -5 -5 -4 -4 -4 -4 -4 -4 -3 -3 -2 --------- Run | Yrd Mat Sub Rec Scr Fac Was Fac Gar Fac Upp Upp Zhi Pro Fac Was Fac Arm Lab Res Tes Res Total 31710 | 110 571 1825 814 4194 2765 77 2492 1057 2649 389 530 235 634 1942 80 4948 2080 11 1255 2498 554 Wait 4658 | 14 323 357 26 276 179 . 258 307 320 32 4 . 15 164 . 826 1193 . 110 212 42 Move 25082 | 69 228 1356 639 3823 2428 75 2112 601 2141 349 521 214 579 1658 80 3879 776 9 1071 2044 430 Hop 87 | . . . . 1 9 . 10 . 3 . . . . 7 . 18 3 . 4 31 1 Pick Up 177 | 5 3 16 23 23 23 . 22 1 10 . . 2 1 7 . 19 5 . 9 4 4 Fast Attach 145 | 7 . 10 2 11 14 1 2 2 6 1 1 7 3 12 . 10 2 . 5 34 15 Attach 81 | . . . 3 2 7 . 3 4 16 2 . 1 1 10 . 11 5 1 5 5 5 Detach 55 | . . 1 2 . 4 . 2 4 12 2 . . . 5 . 9 4 1 3 6 . Swap 97 | 1 1 11 7 1 9 . 15 6 6 . . 1 2 5 . 12 2 . 6 10 2 Drop 208 | 1 . 28 12 45 12 1 21 2 6 . 1 6 1 10 . 21 3 . 7 28 3 Fire 238 | 13 16 43 38 3 3 . 4 4 40 3 . . 13 7 . 24 16 . 6 5 . Melee 494 | . . 2 1 8 51 . 43 47 14 . 3 4 19 26 . 82 24 . 18 100 52 Ram . | . . . . . . . . . . . . . . . . . . . . . . Kick . | . . . . . . . . . . . . . . . . . . . . . . Crush 1 | . . . 1 . . . . . . . . . . . . . . . . . . Escape Stasis 230 | . . . . . 26 . . 58 75 . . . . 13 . 15 24 . . 19 . Rewire 118 | . . . 60 . . . . 21 . . . . . 11 . 2 23 . 1 . . Trap 39 | . . 1 . 1 . . . . . . . . . 7 . 20 . . 10 . . Miscellaneous . | . . . . . . . . . . . . . . . . . . . . . . Route ------- -11/Scrapyard -10/Materials (discovered 4 exits: [*Mat x2] / [*Min] / *Sub) -10/Subcaves (discovered 2 exits: [*Mat] / *Rec) -7/Recycling (discovered 2 exits: *Fac / *Scr) -7/Scraptown (discovered 2 exits: *Fac x2) -5/Factory (discovered 6 exits: *Fac x4 / *Upp x2) -5/Waste -5/Factory (discovered 5 exits: Fac x2 / *Upp x2 / Gar) -5/Garrison (discovered 3 exits: *Fac x3) -5/Factory -5/Upper Caves -5/Upper Caves -5/Zhirov -4/Proximity Caves -4/Factory (discovered 5 exits: *Res x2 / *Upp x2 / Arm) -4/Waste -4/Factory (discovered 5 exits: *Res x2 / *Upp x2 / *Arm) -4/Armory -4/Lab -3/Research (discovered 2 exits: *Tes x2) -3/Testing -2/Research (discovered 1 exit: Qua) History --------- Turn | Location | Event 21 | -11/Scrapyard | Discovered new exit (range 16) 118 | -11/Scrapyard | Entered Materials 118 | -10/Materials | Discovered new exit (range 7) 310 | -10/Materials | Build established: Mutant 469 | -10/Materials | Discovered new exit (range 16) 470 | -10/Materials | Central database locked down 529 | -10/Materials | Discovered new exit (range 10) 676 | -10/Materials | Discovered new exit (range 10) 706 | -10/Materials | Entered Subcaves 928 | -10/Subcaves | Botcube activated 948 | -10/Subcaves | Botcube completed mutation into treaded form, armed with 2 guns. 1318 | -10/Subcaves | A swath of the cavern ceiling suddenly collapsed 1447 | -10/Subcaves | Learned Materials garrison access intel 1489 | -10/Subcaves | Shifting Twisted Machinery released Sub. Machine Gun 1490 | -10/Subcaves | Shifting Twisted Machinery released Battle Cannon 1521 | -10/Subcaves | Core integrity fell below 50% 1642 | -10/Subcaves | A Subdweller sparked back to life 1642 | -10/Subcaves | A Subdweller sparked back to life 1642 | -10/Subcaves | A Subdweller sparked back to life 1670 | -10/Subcaves | Found Prototype Flight Unit 1911 | -10/Subcaves | Discovered new exit (range 10) 1914 | -10/Subcaves | Learned Materials garrison access intel 1965 | -10/Subcaves | Visited 4L-MR0's lab 1972 | -10/Subcaves | Identified Flightbrick 1984 | -10/Subcaves | Found Meta Core 3062 | -10/Subcaves | Discovered new exit (range 9) 3108 | -10/Subcaves | Entered Recycling 3108 | -7/Recycling | Accompanied by 1 ally 4498 | -7/Recycling | Build established: Commander-Mutant 4893 | -7/Recycling | Discovered new exit (range 6) 5199 | -7/Recycling | Scanned before Scraplab entrance 5250 | -7/Recycling | Entered Scraplab 5278 | -7/Recycling | Discovered new exit (range 3) 5286 | -7/Recycling | Entered Scraptown 5286 | -7/Scraptown | Accompanied by 6 allies 5286 | -7/Scraptown | System corruption cleaned by C-Scrubber 5416 | -7/Scraptown | Visited Spacefarers 5494 | -7/Scraptown | Visited Junk Repository 5606 | -7/Scraptown | Received an X-ray algorithm 5718 | -7/Scraptown | Visited Cave Peace 5739 | -7/Scraptown | Visited Fellowship of the Rings 5793 | -7/Scraptown | Visited Red Mages 5841 | -7/Scraptown | Visited IN-MT5's Study 6042 | -7/Scraptown | Visited UFD Registry 6052 | -7/Scraptown | Registered with UFD as "Nutbucket" 6137 | -7/Scraptown | Visited A0-MCA Data Center 6225 | -7/Scraptown | Visited Junk Repository 6266 | -7/Scraptown | Visited Science Guys 6372 | -7/Scraptown | Visited Scrap Suit Storage 6419 | -7/Scraptown | Visited Sword Containment 6450 | -7/Scraptown | Visited LU-1G1's Boring Crew 6504 | -7/Scraptown | Visited DA-N13 Charitable Foundation 6521 | -7/Scraptown | Found DCF Scrap (30 items) 6610 | -7/Scraptown | Visited Botcube Research 6667 | -7/Scraptown | Visited Modified Component R&D 8048 | -7/Scraptown | Discovered new exit (range 11) 8214 | -7/Scraptown | Scanned Subdweller tech in exchange for log data 8225 | -7/Scraptown | Learned location of Warlord (-4) 8228 | -7/Scraptown | Learned Factory emergency access door positions 8340 | -7/Scraptown | Guru changed UFD alias to "Cognuts" 8619 | -7/Scraptown | Visited Awakened 9128 | -7/Scraptown | Found Botcube 9760 | -7/Scraptown | Found Scrap Suit 10441 | -7/Scraptown | Botcube activated 10461 | -7/Scraptown | Botcube completed mutation into treaded form, armed with 2 guns. 10568 | -7/Scraptown | Attached CPS modules to *Nutcracker. 11341 | -7/Scraptown | Attached CPS modules to *Emma. 11359 | -7/Scraptown | Murdered *Emma 11359 | -7/Scraptown | Destroyed *Emma 11369 | -7/Scraptown | Found Botcube 11792 | -7/Scraptown | Found Scrap Suit 12195 | -7/Scraptown | Botcube activated 12215 | -7/Scraptown | Botcube completed mutation into wheeled form, armed with 1 gun, 1 cannon. 12806 | -7/Scraptown | Given a B+ rating by A0-MCA 12808 | -7/Scraptown | Found A0-MCA's Component Scanner 12999 | -7/Scraptown | Warned about trapping Scraptown 13023 | -7/Scraptown | Attached CPS modules to *Eat Nuts!. 13101 | -7/Scraptown | Attached Meta Core, gained temporary slots: Propulsion, Utility, Weapon 13153 | -7/Scraptown | Discovered new exit (range 5) 13160 | -7/Scraptown | System corruption cleaned by C-Scrubber 13320 | -7/Scraptown | Found Companion Sword 13670 | -7/Scraptown | Attacked by Scraptown defenders 13702 | -7/Scraptown | Entered Factory 13702 | -5/Factory | Accompanied by 2 allies 13702 | -5/Factory | Evolved 10 slots: Power x1, Propulsion x3, Utility x6 13709 | -5/Factory | Attached Flightbrick, gained temporary slots: Utility x3 13868 | -5/Factory | Found Botcube 14117 | -5/Factory | Discovered new exit (range 4) 14117 | -5/Factory | Identified exit to Upper Caves 14213 | -5/Factory | Repaired Broken CPS Tube? 14460 | -5/Factory | Build established: Hacker-Scout 14515 | -5/Factory | Discovered new exit (range 6) 14517 | -5/Factory | Identified exit to Factory 14602 | -5/Factory | Discovered exit to Upper Caves (range 3) 14675 | -5/Factory | Fabricated IN-MT5's Pitchfork "Insurrection"? 14687 | -5/Factory | Reprogrammed and armed K-01 Serf 14742 | -5/Factory | Learned Extension stockpile data 14756 | -5/Factory | Fabricated IN-MT5's Pitchfork "Insurrection"? 14812 | -5/Factory | Loaded intel: 110 trap records 14831 | -5/Factory | Learned Research stockpile data 14841 | -5/Factory | Learned Armory security intel 14888 | -5/Factory | Learned location of 2 exits from Factory 14902 | -5/Factory | Search patrols dispatched 14947 | -5/Factory | Manually triggered Chute Trap 14947 | -5/Factory | Sucked down chute 14947 | -5/Factory | Entered Waste 14948 | -5/Waste | Identified exit to Factory 14951 | -5/Waste | Spotted C-40 Crusher 14954 | -5/Waste | Spotted C-40 Crusher 14960 | -5/Waste | Spotted C-40 Crusher 14962 | -5/Waste | EMP discharged 14962 | -5/Waste | Spotted C-40 Crusher 14962 | -5/Waste | Spotted C-40 Crusher 14973 | -5/Waste | Entered Factory 15008 | -5/Factory | Reprogrammed and armed K-01 Serf 15013 | -5/Factory | Reprogrammed and armed K-01 Serf 15137 | -5/Factory | Reprogrammed and armed K-01 Serf 15147 | -5/Factory | Found Mni. Smartbomb Launcher 15165 | -5/Factory | Reprogrammed and armed K-01 Serf 15168 | -5/Factory | Reprogrammed and armed K-01 Serf 15186 | -5/Factory | Reprogrammed and armed K-01 Serf 15246 | -5/Factory | Reprogrammed and armed K-01 Serf 15246 | -5/Factory | Reprogrammed and armed K-01 Serf 15257 | -5/Factory | Fabricated IN-MT5's Pitchfork "Insurrection"? 15265 | -5/Factory | Fabricated IN-MT5's Pitchfork "Insurrection"? 15267 | -5/Factory | Reprogrammed and armed K-01 Serf 15307 | -5/Factory | Reprogrammed and armed K-01 Serf 15357 | -5/Factory | Fabricated IN-MT5's Pitchfork "Insurrection"? 15422 | -5/Factory | Reprogrammed and armed K-01 Serf 15422 | -5/Factory | Reprogrammed and armed K-01 Serf 15501 | -5/Factory | Reprogrammed and armed K-01 Serf 15509 | -5/Factory | Reprogrammed and armed K-01 Serf 15516 | -5/Factory | Reprogrammed and armed K-01 Serf 15522 | -5/Factory | Reprogrammed and armed K-01 Serf 15547 | -5/Factory | Reprogrammed and armed K-01 Serf 15577 | -5/Factory | Reprogrammed and armed K-01 Serf 15582 | -5/Factory | Reprogrammed and armed K-01 Serf 15584 | -5/Factory | Reprogrammed and armed K-01 Serf 15592 | -5/Factory | Reprogrammed and armed K-01 Serf 15596 | -5/Factory | Reprogrammed and armed K-01 Serf 15616 | -5/Factory | Reprogrammed and armed K-01 Serf 15631 | -5/Factory | Identified exit to Garrison 15634 | -5/Factory | Reprogrammed and armed K-01 Serf 15687 | -5/Factory | Garrison activated, responded to threat 15688 | -5/Factory | Cargo convoy interrupted 15744 | -5/Factory | Lost 4 allies 15812 | -5/Factory | Found Adv. Kinecellerator 15823 | -5/Factory | Found Active Cooling Armor 15860 | -5/Factory | Botcube activated 15873 | -5/Factory | First assault squad dispatched 15888 | -5/Factory | Attached CPS modules to *Cryo Tank. 15891 | -5/Factory | Reprogrammed and armed K-01 Serf 15933 | -5/Factory | Reprogrammed and armed K-01 Serf 15935 | -5/Factory | Garrison activated, responded to threat 15966 | -5/Factory | Reprogrammed and armed K-01 Serf 15968 | -5/Factory | Reprogrammed and armed K-01 Serf 15969 | -5/Factory | Reprogrammed and armed K-01 Serf 15974 | -5/Factory | Lost 5 allies 15980 | -5/Factory | Reprogrammed and armed K-01 Serf 16032 | -5/Factory | Garrison activated, responded to threat 16067 | -5/Factory | High security lockdown imminent 16073 | -5/Factory | Lost 5 allies 16107 | -5/Factory | Entered Garrison 16107 | -5/Garrison | Accompanied by 15 allies 16227 | -5/Garrison | Triggered checkpoint 16252 | -5/Garrison | Garrison Relay disabled 16469 | -5/Garrison | Triggered checkpoint 16522 | -5/Garrison | Spotted B-75 Beast 16533 | -5/Garrison | Triggered checkpoint 16548 | -5/Garrison | Triggered checkpoint 16550 | -5/Garrison | Allies destroyed B-75 Beast 16553 | -5/Garrison | Triggered checkpoint 16571 | -5/Garrison | Triggered checkpoint 16572 | -5/Garrison | Lost 7 allies 16621 | -5/Garrison | Discovered new exit (range 75) 16621 | -5/Garrison | Discovered new exit (range 19) 16621 | -5/Garrison | Discovered new exit (range 51) 16647 | -5/Garrison | Installed Relay Interface Framework 16779 | -5/Garrison | Triggered checkpoint 16791 | -5/Garrison | Garrison Relay disabled 16815 | -5/Garrison | Identified exit to Factory 16853 | -5/Garrison | Entered Factory 16853 | -5/Factory | Accompanied by 7 allies 16886 | -5/Factory | Reprogrammed and armed K-01 Serf 17036 | -5/Factory | Reprogrammed and armed K-01 Serf 17099 | -5/Factory | Reprogrammed and armed K-01 Serf 17118 | -5/Factory | Reprogrammed and armed K-01 Serf 17126 | -5/Factory | Reprogrammed and armed K-01 Serf 17127 | -5/Factory | Reprogrammed and armed K-01 Serf 17129 | -5/Factory | Reprogrammed and armed K-01 Serf 17139 | -5/Factory | Reprogrammed and armed K-01 Serf 17310 | -5/Factory | Reprogrammed and armed K-01 Serf 17312 | -5/Factory | Reprogrammed and armed K-01 Serf 17316 | -5/Factory | Reprogrammed and armed K-01 Serf 17319 | -5/Factory | Reprogrammed and armed K-01 Serf 17323 | -5/Factory | Reprogrammed and armed K-01 Serf 17327 | -5/Factory | Fabricated IN-MT5's Pitchfork "Insurrection"? 17329 | -5/Factory | Fabricated IN-MT5's Pitchfork "Insurrection" (x1) 17356 | -5/Factory | Fabricated IN-MT5's Pitchfork "Insurrection"? 17387 | -5/Factory | Reprogrammed and armed K-01 Serf 17418 | -5/Factory | High security lockdown imminent 17436 | -5/Factory | Reprogrammed and armed K-01 Serf 17448 | -5/Factory | Fabricated B-60 Warrior? 17451 | -5/Factory | Reprogrammed and armed K-01 Serf 17455 | -5/Factory | Reprogrammed and armed K-01 Serf 17485 | -5/Factory | Reprogrammed and armed K-01 Serf 17486 | -5/Factory | Reprogrammed and armed K-01 Serf 17491 | -5/Factory | Reprogrammed and armed K-01 Serf 17498 | -5/Factory | High security lockdown engaged 17572 | -5/Factory | Reprogrammed and armed K-01 Serf 17805 | -5/Factory | Lost 7 allies 17858 | -5/Factory | Lost 3 allies 17886 | -5/Factory | System corruption reached 10% 17962 | -5/Factory | P-70 Sage assimilated allied K-01 Serf 17964 | -5/Factory | P-70 Sage assimilated allied K-01 Serf 17971 | -5/Factory | Reprogrammed and armed K-01 Serf 17972 | -5/Factory | Reprogrammed and armed K-01 Serf 17989 | -5/Factory | Lost 7 allies 18040 | -5/Factory | Destroyed 10 combat bots 18055 | -5/Factory | P-70 Sage assimilated allied K-01 Serf 18056 | -5/Factory | Found Botcube 18098 | -5/Factory | Lost 3 allies 18284 | -5/Factory | Discovered exit to Upper Caves (range 12) 18287 | -5/Factory | Entered Upper Caves 18396 | -5/Upper Caves | Spotted B-75 Beast 18411 | -5/Upper Caves | Build established: Hacker-Ninja 18433 | -5/Upper Caves | Learned 4 Factory zone layouts 18443 | -5/Upper Caves | Discovered new exit (range 10) 18445 | -5/Upper Caves | Learned Factory interactive machine intel 18450 | -5/Upper Caves | Identified exit to Upper Caves 18451 | -5/Upper Caves | Entered another Upper Caves area 18502 | -5/Upper Caves | Encountered a Warlord checkpoint 18521 | -5/Upper Caves | Learned Factory terminal intel 18637 | -5/Upper Caves | Discovered new exit (range 9) 18642 | -5/Upper Caves | Identified exit to Zhirov 18642 | -5/Upper Caves | Entered Zhirov 18642 | -5/Zhirov | Discovered new exit (range 3) 18643 | -5/Zhirov | Identified exit to Proximity Caves 18649 | -5/Zhirov | Met Zhirov 18655 | -5/Zhirov | Learned location of Quarantine (-2) 18655 | -5/Zhirov | Learned location of Testing (-3) 18655 | -5/Zhirov | Learned location of Command (-1) 18658 | -5/Zhirov | Zhirov requested help retrieving the SGEMP Prototype 18663 | -5/Zhirov | Found Alien Artifact 18663 | -5/Zhirov | Identified Integrated Reactor 18663 | -5/Zhirov | Installed Integrated Reactor, increased core energy generation (+10) 18733 | -5/Zhirov | Found Alien Artifact 18753 | -5/Zhirov | Entered Proximity Caves 18917 | -4/Proximity Caves | Ambushed by research squad 18955 | -4/Proximity Caves | Lost 3 parts (1p1n1w) 18980 | -4/Proximity Caves | Core integrity fell below 50% 19024 | -4/Proximity Caves | Lost 3 parts (1n1u1w) 19079 | -4/Proximity Caves | Discovered exit to Factory (range 13) 19082 | -4/Proximity Caves | Entered Factory 19082 | -4/Factory | Evolved 2 slots: Propulsion x1, Utility x1 19084 | -4/Factory | Loaded intel: 53 interactive machine locations 19085 | -4/Factory | Loaded intel: 25 terminal locations 19101 | -4/Factory | Reprogrammed and armed K-01 Serf 19113 | -4/Factory | Discovered new exit (range 15) 19237 | -4/Factory | Identified exit to Upper Caves 19237 | -4/Factory | Identified exit to Armory 19274 | -4/Factory | Reprogrammed and armed K-01 Serf 19351 | -4/Factory | Reprogrammed and armed K-01 Serf 19370 | -4/Factory | Fabricated IN-MT5's Pitchfork "Insurrection"? 19397 | -4/Factory | Discovered new exit (range 11) 19455 | -4/Factory | Build established: Hacker-Mutant 19465 | -4/Factory | Reprogrammed and armed K-01 Serf 19513 | -4/Factory | Fabricated IN-MT5's Pitchfork "Insurrection" (x1) 19552 | -4/Factory | Reprogrammed and armed K-01 Serf 19592 | -4/Factory | Found Exp. Signal Interpreter 19603 | -4/Factory | Reprogrammed and armed K-01 Serf 19606 | -4/Factory | Reprogrammed and armed K-01 Serf 19606 | -4/Factory | Reprogrammed and armed K-01 Serf 19715 | -4/Factory | Lost 3 allies 19756 | -4/Factory | Reprogrammed and armed K-01 Serf 19757 | -4/Factory | Reprogrammed and armed K-01 Serf 19778 | -4/Factory | Reprogrammed and armed K-01 Serf 19811 | -4/Factory | Reprogrammed and armed K-01 Serf 19812 | -4/Factory | P-70 Sage assimilated allied K-01 Serf 19824 | -4/Factory | Fabricated CPS Tube? 19855 | -4/Factory | Identified exit to Research 19857 | -4/Factory | Reprogrammed and armed K-01 Serf 19859 | -4/Factory | Spotted B-86 Titan 19910 | -4/Factory | Reprogrammed and armed K-01 Serf 19919 | -4/Factory | Learned Testing scanalyzer intel 19946 | -4/Factory | Reprogrammed and armed K-01 Serf 19947 | -4/Factory | Reprogrammed and armed K-01 Serf 19949 | -4/Factory | Sucked down chute 19949 | -4/Factory | Entered Waste 19955 | -4/Waste | Spotted C-40 Crusher 19956 | -4/Waste | Spotted C-40 Crusher 19959 | -4/Waste | Spotted C-40 Crusher 19963 | -4/Waste | Spotted C-40 Crusher 19963 | -4/Waste | Discovered new exit (range 10) 19964 | -4/Waste | EMP discharged 19965 | -4/Waste | Identified exit to Factory 19965 | -4/Waste | Entered Factory 19980 | -4/Factory | Identified Transdimensional Reconstructor 19986 | -4/Factory | Reprogrammed and armed K-01 Serf 20054 | -4/Factory | Discovered exit to Research (range 17) 20080 | -4/Factory | 8 allies followed down the chute 20272 | -4/Factory | Reprogrammed and armed K-01 Serf 20285 | -4/Factory | Reprogrammed and armed K-01 Serf 20294 | -4/Factory | Discovered exit to Research (range 19) 20309 | -4/Factory | Reprogrammed and armed K-01 Serf 20396 | -4/Factory | Build established: Hacker-Ninja 20430 | -4/Factory | Reprogrammed and armed K-01 Serf 20504 | -4/Factory | Reprogrammed and armed K-01 Serf 20515 | -4/Factory | Cargo convoy interrupted 20560 | -4/Factory | Reprogrammed and armed K-01 Serf 20580 | -4/Factory | Reprogrammed and armed K-01 Serf 20587 | -4/Factory | Found Ragnarok Missile Launcher 20590 | -4/Factory | Found Gui. Micro-nuke Launcher 20614 | -4/Factory | Lost 6 allies 20623 | -4/Factory | Reprogrammed and armed K-01 Serf 20655 | -4/Factory | Reprogrammed and armed K-01 Serf 20698 | -4/Factory | Reprogrammed and armed K-01 Serf 20700 | -4/Factory | Reprogrammed and armed K-01 Serf 20702 | -4/Factory | Reprogrammed and armed K-01 Serf 20704 | -4/Factory | Reprogrammed and armed K-01 Serf 20704 | -4/Factory | Reprogrammed and armed K-01 Serf 20705 | -4/Factory | Reprogrammed and armed K-01 Serf 20759 | -4/Factory | Reprogrammed and armed K-01 Serf 20781 | -4/Factory | Reprogrammed and armed K-01 Serf 20781 | -4/Factory | Reprogrammed and armed K-01 Serf 20783 | -4/Factory | Reprogrammed and armed K-01 Serf 20805 | -4/Factory | Reprogrammed and armed K-01 Serf 20818 | -4/Factory | Reprogrammed and armed K-01 Serf 20819 | -4/Factory | Reprogrammed and armed K-01 Serf 20823 | -4/Factory | Lost 3 allies 20826 | -4/Factory | Reprogrammed and armed K-01 Serf 20827 | -4/Factory | Reprogrammed and armed K-01 Serf 20877 | -4/Factory | Lost 5 allies 20881 | -4/Factory | Reprogrammed and armed K-01 Serf 20882 | -4/Factory | Reprogrammed and armed K-01 Serf 20882 | -4/Factory | Reprogrammed and armed K-01 Serf 20911 | -4/Factory | Reprogrammed and armed K-01 Serf 20916 | -4/Factory | Reprogrammed and armed K-01 Serf 20919 | -4/Factory | Build established: Hacker-Sprinter 20919 | -4/Factory | Reprogrammed and armed K-01 Serf 20938 | -4/Factory | Reprogrammed and armed K-01 Serf 20961 | -4/Factory | Reprogrammed and armed K-01 Serf 20988 | -4/Factory | Reprogrammed and armed K-01 Serf 20998 | -4/Factory | Fabricated IN-MT5's Pitchfork "Insurrection" (x1) 21001 | -4/Factory | Reprogrammed and armed K-01 Serf 21027 | -4/Factory | Reprogrammed and armed K-01 Serf 21101 | -4/Factory | Reprogrammed and armed K-01 Serf 21102 | -4/Factory | Reprogrammed and armed K-01 Serf 21215 | -4/Factory | First assault squad dispatched 21249 | -4/Factory | Reprogrammed and armed K-01 Serf 21249 | -4/Factory | Reprogrammed and armed K-01 Serf 21256 | -4/Factory | Reprogrammed and armed K-01 Serf 21258 | -4/Factory | Reprogrammed and armed K-01 Serf 21258 | -4/Factory | Reprogrammed and armed K-01 Serf 21270 | -4/Factory | Reprogrammed and armed K-01 Serf 21271 | -4/Factory | Reprogrammed and armed K-01 Serf 21273 | -4/Factory | Reprogrammed and armed K-01 Serf 21274 | -4/Factory | Reprogrammed and armed K-01 Serf 21336 | -4/Factory | Reprogrammed and armed K-01 Serf 21337 | -4/Factory | Reprogrammed and armed K-01 Serf 21339 | -4/Factory | Reprogrammed and armed K-01 Serf 21344 | -4/Factory | Reprogrammed and armed K-01 Serf 21408 | -4/Factory | Fabricated IN-MT5's Pitchfork "Insurrection"? 21423 | -4/Factory | Reprogrammed and armed K-01 Serf 21432 | -4/Factory | Reprogrammed and armed K-01 Serf 21434 | -4/Factory | Reprogrammed and armed K-01 Serf 21439 | -4/Factory | Reprogrammed and armed K-01 Serf 21466 | -4/Factory | Reprogrammed and armed K-01 Serf 21470 | -4/Factory | Build established: Hacker-Ninja 21473 | -4/Factory | Reprogrammed and armed K-01 Serf 21566 | -4/Factory | High security lockdown imminent 21573 | -4/Factory | Reprogrammed and armed K-01 Serf 21574 | -4/Factory | Reprogrammed and armed K-01 Serf 21646 | -4/Factory | High security lockdown engaged 21685 | -4/Factory | Discovered exit to Armory (range 8) 21846 | -4/Factory | Botcube activated 21866 | -4/Factory | Botcube completed mutation into treaded form, armed with 2 guns. 21871 | -4/Factory | Attached CPS modules to *serfherder. 21915 | -4/Factory | Lost 3 allies 22046 | -4/Factory | Reprogrammed and armed K-01 Serf 22048 | -4/Factory | Sterilization system engaged 22048 | -4/Factory | Non-combat units ordered to evacuate 22081 | -4/Factory | Lost 3 allies 22096 | -4/Factory | Entered Armory 22096 | -4/Armory | Accompanied by 34 allies 22346 | -4/Armory | First assault squad dispatched 22988 | -4/Armory | High security lockdown imminent 23051 | -4/Armory | Lost 4 allies 23068 | -4/Armory | High security lockdown engaged 23422 | -4/Armory | Lost 25 allies 23497 | -4/Armory | Found Mni. Smartbomb Launcher 23635 | -4/Armory | Discovered new exit (range 3) 23637 | -4/Armory | Identified exit to Lab 23639 | -4/Armory | Entered Lab 23639 | -4/Lab | Discovered exit to Research (range 9) 23643 | -4/Lab | System corruption reached 10% 23643 | -4/Lab | Entered Research 23643 | -3/Research | Evolved 2 slots: Propulsion x1, Utility x1 23646 | -3/Research | Identified exit to Testing 23713 | -3/Research | Found Exp. Terrain Scanner 23813 | -3/Research | Reprogrammed and armed K-01 Serf 23817 | -3/Research | Reprogrammed and armed K-01 Serf 23825 | -3/Research | Reprogrammed and armed K-01 Serf 23885 | -3/Research | Reprogrammed and armed K-01 Serf 23897 | -3/Research | P-80 Master assimilated allied K-01 Serf 23929 | -3/Research | Reprogrammed and armed K-01 Serf 23930 | -3/Research | Reprogrammed and armed K-01 Serf 23935 | -3/Research | Reprogrammed and armed K-01 Serf 23936 | -3/Research | Reprogrammed and armed K-01 Serf 23998 | -3/Research | P-80 Master assimilated allied K-01 Serf 23999 | -3/Research | P-80 Master assimilated allied K-01 Serf 24069 | -3/Research | Spotted B-86 Titan 24070 | -3/Research | Reprogrammed and armed K-01 Serf 24108 | -3/Research | Entered Testing 24109 | -3/Testing | Forged Quantum Companion 24109 | -3/Testing | Loaded intel: 3 scanalyzer locations 24126 | -3/Testing | Found Prototype Launcher 24126 | -3/Testing | Identified Z-bomb Delivery System 24132 | -3/Testing | Spotted PL-1PE06C25ZR 24138 | -3/Testing | Lost 6 parts (1p3n1u1w) 24193 | -3/Testing | Found Prototype Ballistic Cannon 24193 | -3/Testing | Identified Omega Cannon 24266 | -3/Testing | Found Prototype Energy Gun 24266 | -3/Testing | Identified Warp Gun 24494 | -3/Testing | Fabricated IN-MT5's Pitchfork "Insurrection" (x1) 24582 | -3/Testing | Found Prototype Hackware 24590 | -3/Testing | Found Prototype Energy Cannon 24590 | -3/Testing | Identified Disintegrator 24611 | -3/Testing | Discovered new exit (range 5) 24612 | -3/Testing | Identified exit to Research 24638 | -3/Testing | Found Prototype Energy Gun 24638 | -3/Testing | Identified Tachyon Dispersion Ray 24645 | -3/Testing | Unchained authorized (CL-0N3) 24653 | -3/Testing | Found Prototype Energy Cannon 24653 | -3/Testing | Identified Null Cannon 24702 | -3/Testing | Reprogrammed and armed K-01 Serf 24714 | -3/Testing | Reprogrammed and armed K-01 Serf 24754 | -3/Testing | Reprogrammed and armed K-01 Serf 24754 | -3/Testing | Spotted Striker 24755 | -3/Testing | Spotted Striker 24801 | -3/Testing | P-80 Master reconstituted as Quarantine Guard 24801 | -3/Testing | Spotted Quarantine Guard 24842 | -3/Testing | Reprogrammed and armed K-01 Serf 24843 | -3/Testing | Reprogrammed and armed K-01 Serf 24925 | -3/Testing | Destroyed Quarantine Guard 24925 | -3/Testing | Quarantine Guard reconstituted as CL-0N3 24938 | -3/Testing | Reprogrammed and armed K-01 Serf 24963 | -3/Testing | Reprogrammed and armed K-01 Serf 24969 | -3/Testing | Destroyed CL-0N3 24979 | -3/Testing | Extracted schematics, analyses from CL-0N3's data core 25009 | -3/Testing | Reprogrammed and armed K-01 Serf 25065 | -3/Testing | Reprogrammed and armed K-01 Serf 25148 | -3/Testing | P-80 Master assimilated allied K-01 Serf 25163 | -3/Testing | Reprogrammed and armed K-01 Serf 25243 | -3/Testing | System corruption reached 10% 25341 | -3/Testing | Entered Research 25341 | -2/Research | Evolved 2 slots: Utility x2 25341 | -2/Research | Identified System Mapper 25375 | -2/Research | Spotted B-90 Cyclops 25395 | -2/Research | Reprogrammed and armed K-01 Serf 25396 | -2/Research | Reprogrammed and armed K-01 Serf 25397 | -2/Research | Identified exit to Quarantine 25506 | -2/Research | Reprogrammed and armed K-01 Serf 25506 | -2/Research | Reprogrammed and armed K-01 Serf 25534 | -2/Research | Lost 9 parts (5n4u) 25537 | -2/Research | Reprogrammed and armed K-01 Serf 25541 | -2/Research | Reprogrammed and armed K-01 Serf 25573 | -2/Research | Reprogrammed and armed K-01 Serf 25578 | -2/Research | Reprogrammed and armed K-01 Serf 25593 | -2/Research | Warped through subspace 25620 | -2/Research | Lost 6 allies 25688 | -2/Research | Reprogrammed and armed K-01 Serf 25689 | -2/Research | Reprogrammed and armed K-01 Serf 25691 | -2/Research | Lost 4 parts (2p1n1u) 25708 | -2/Research | Reprogrammed and armed K-01 Serf 25720 | -2/Research | Core integrity fell below 50% 25720 | -2/Research | P-80 Master assimilated allied K-01 Serf 25732 | -2/Research | Reprogrammed and armed K-01 Serf 25738 | -2/Research | P-80 Master assimilated allied K-01 Serf 25763 | -2/Research | Core integrity fell below 20% 25771 | -2/Research | Destroyed by H-88 Terminator with KE Penetrator Last Messages --------------- 25763_ Slug penetrates Wall. 25765_ Penetrated by Slug. 25765_ Med. Storage Unit destroyed. 25765_ Penetrated by Slug. 25765_ H-88 Terminator destroyed. 25766_ K-01 Serf collects debris. 25766_ U-05 Engineer builds a Wall. 25768_ Penetrated by Slug. 25768_ Imp. Gyrokinetic Inverter destroyed. 25768_ Penetrated by Slug. 25769_ H-88 Terminator Unknown Leg severed. 25769_ Penetrated by Slug. 25769_ W-44 Eye sends out distress signal. 25769_ K-01 Serf collects debris. 25770_ U-05 Engineer lays Concrete. 25771_ Slug penetrates H-88 Terminator. 25771_ H-88 Terminator destroyed. 25771_ K-01 Serf suffers critical hit (Destroy). 25771_ K-01 Serf destroyed. 25771_ Penetrated by Slug. Map ----- +----------------------------------------------------+ | ??# #?? ! #???# #?????????????????????????? | | ??# # #???# ####?????????????????????????? | | ??# " ##### !% ##???????????????????????????? | | ??#%# + = #????????????????????????????? | | ### # ##### #????????????????????????????? | | % + ! #???# ########?????????????????????? | | ###"##+#####???# #?????????????????????? | | # #???????# #?????????????????????? | | # ######### #?????????????????????? | | # + #?????????????????????? | | # = ############ #?????????????????????? | | # #??????????# #?????????????????????? | | # #??????????# #?????????????????????? | | ########??????????# #?????????????????????? | | ??????????????????# #?????????????????????? | | ??????????????????# ^####??????????????????? | | ??????????????????# ^^ #??????????????????? | | ??????""??????????# #??????????????????? | | ??????""??????????? #??????????????????? | | ??????T"???????????### #??????????????????? | | ??????""?????????????# #??????????????????? | | ??????""??##########?# #??????????????????? | | ??????????# #?# #??????????????????? | | ??????????# ### =h[k ##?????????????????? | | ??????????# + u![%[ #?????????????????? | | ??????????# *== ######@%%=[ #?????????????????? | | ??????????# =[=%!# |!|#%=*% ###????????????????? | | ??????????# "Y"=! #|!!%|%]!! ; #???????????? | | ??????????# " " # ]![#%!%% # #???????????? | | ??????????# # ![!#=k!=|#? #???????????? | | ??????????# # !%#*[=!!#??? w k ??????????? | | ??????????#####+####%!% +%*** #???? #g??????????? | | ?????????????# %" ![#==!h #??????#???????????? | | ?????????????# ### |!#%=A #??????????????????? | | ?????????????# #?# ##!! ##??????????????????? | | ?????????????# #?###"###h #???????????????????? | | ?????????????# #??? ??# !!#???????????????????? | | ?????????????# #??? |??+ !%#???????????????????? | | ?????????????# #?? ??# [=#???????????????????? | | ?????????????# #?? ??# #???????????????????? | | ????????????? #??###??# #???????????????????? | | ""???????????# #??????? ???????????????????? | | R"???????????# #??????? ????????"??????????? | | ?"???????????# #??????? ???????"T?????????? | | ?????????????# #??????? ??????????????????? | | ?????????????# #??????? * ##?????????????????? | | ?????????????# #???????# ##??????????????????? | | ?????????????# #???????? #???????????????????? | | ?????????????# #???????? #???????????????????? | | ?????????????# #???????? #???????????????????? | +----------------------------------------------------+ Best States ------------- Heat Dissipation 62 Energy Generation 47 Energy Capacity 345 Matter Stores 700 Matter Capacity 700 Sight Range 23 Robot Scan Range 16 Terrain Scan Density 10 Jamming Range 16 Additional Mass Support 12 Corruption Block 15 Armor Coverage 750 Core Shielding 90 Point Defense Rating 80 Weapon Cycling 15 Evasion (%) 66 Melee Accuracy 16 Core Analysis 6 Armor Integrity Analysis 30 Recoil Reduction 2 Offensive Hacking 46 Defensive Hacking 40 Relay Coupler Types 1 Relay Coupler Value 24 Authchip Count 3 Trap Extractor Capacity 8 Item Schematics ----------------- Huge Storage Unit | -10/Materials | Hacked Hacking Suite | -7/Recycling | Hacked Smartbomb Launcher | -7/Recycling | Hacked Hvy. Treads | -7/Recycling | Hacked Force Field | -7/Recycling | Hacked IN-MT5's Pitchfork "Insurrection" | -7/Scraptown | Archive Adv. Trap Extractor | -5/Factory | Hacked Assault Drone Bay | -5/Zhirov | Free Exp. Optical Array | -5/Zhirov | Free Exp. Heat Sink | -5/Zhirov | Free Imp. Arc Thrower | -5/Zhirov | Free CPS Tube | -4/Factory | Scanalyzed Hds. Centrium Leg | -3/Research | Hacked Exp. Q-thruster | -3/Testing | Hacked Enh. Biometal Leg | -3/Testing | Archive Adv. Remote Shield | -3/Testing | Archive Robot Schematics ------------------ K-01 Serf | -3/Testing | Archive T-07 Excavator | -3/Testing | Archive A-02 Transporter | -3/Testing | Archive A-15 Conveyor | -3/Testing | Archive R-06 Scavenger | -3/Testing | Archive R-10 Processor | -3/Testing | Archive M-14 Sweeper | -3/Testing | Archive M-22 Extractor | -3/Testing | Archive M-30 Cleanser | -3/Testing | Archive M-13 Machinist | -3/Testing | Archive M-28 Smith | -3/Testing | Archive M-36 Artificer | -3/Testing | Archive O-16 Technician | -3/Testing | Archive O-24 Administrator | -3/Testing | Archive O-32 Director | -3/Testing | Archive W-16 Scout | -3/Testing | Archive W-25 Informer | -3/Testing | Archive W-44 Eye | -3/Testing | Archive S-10 Pest | -3/Testing | Archive S-27 Virus | -3/Testing | Archive S-43 Plague | -3/Testing | Archive G-34 Mercenary | -3/Testing | Archive G-47 Trooper | -3/Testing | Archive G-50 Soldier | -3/Testing | Archive G-67 Veteran | -3/Testing | Archive G-73 Enforcer | -3/Testing | Archive B-36 Bruiser | -3/Testing | Archive B-48 Gladiator | -3/Testing | Archive B-60 Warrior | -3/Testing | Archive B-74 Champion | -3/Testing | Archive L-31 Rogue | -3/Testing | Archive L-41 Fighter | -3/Testing | Archive L-61 Swordsman | -3/Testing | Archive Y-45 Defender | -3/Testing | Archive Y-54 Guardian | -3/Testing | Archive Y-64 Sentinel | -3/Testing | Archive Y-72 Warden | -3/Testing | Archive D-53 Grenadier | -3/Testing | Archive D-63 Destroyer | -3/Testing | Archive D-83 Annihilator | -3/Testing | Archive X-57 Shotgunner | -3/Testing | Archive X-62 Marksman | -3/Testing | Archive X-67 Chaingunner | -3/Testing | Archive X-72 Disruptor | -3/Testing | Archive X-77 Beamer | -3/Testing | Archive X-82 Rainmaker | -3/Testing | Archive X-87 Electro | -3/Testing | Archive H-55 Commando | -3/Testing | Archive H-66 Slayer | -3/Testing | Archive H-77 Assassin | -3/Testing | Archive H-88 Terminator | -3/Testing | Archive P-60 Hacker | -3/Testing | Archive P-70 Sage | -3/Testing | Archive P-80 Master | -3/Testing | Archive Fabricated ------------ IN-MT5's Pitchfork "Insurrection" | x1 | -5/Factory | Authchip IN-MT5's Pitchfork "Insurrection" | x1 | -5/Factory | Authchip IN-MT5's Pitchfork "Insurrection" | x1 | -5/Factory | Authchip IN-MT5's Pitchfork "Insurrection" | x1 | -5/Factory | Authchip IN-MT5's Pitchfork "Insurrection" | x1 | -5/Factory IN-MT5's Pitchfork "Insurrection" | x1 | -5/Factory | Authchip IN-MT5's Pitchfork "Insurrection" | x1 | -5/Factory | Authchip IN-MT5's Pitchfork "Insurrection" | x1 | -5/Factory | Authchip B-60 Warrior | x3 | -5/Factory | Preloaded IN-MT5's Pitchfork "Insurrection" | x1 | -4/Factory | Authchip IN-MT5's Pitchfork "Insurrection" | x1 | -4/Factory | Authchip CPS Tube | x1 | -4/Factory IN-MT5's Pitchfork "Insurrection" | x1 | -4/Factory | Authchip IN-MT5's Pitchfork "Insurrection" | x1 | -4/Factory IN-MT5's Pitchfork "Insurrection" | x1 | -3/Testing Repaired ---------- CPS Tube | 99% | -5/Factory | Broken Studied --------- Nuclear Pulse Array | -4/Factory | Hacked Lgt. Ion Engine | -4/Factory | Hacked Field Propulsion Array | -3/Research | Hacked Enh. Nova Cannon | -3/Research | Hacked Impulse Thruster | -3/Testing | Hacked Alien Tech Used ----------------- Integrated Reactor Transdimensional Reconstructor Achievements -------------- None Challenges ------------ None Game ------ Seed DimensionalFluxBotcube Manual? 0 Play Time 06:39:08 Cumulative 1221.1 hours Start 2026.01.05 @ 07:22:04 End 2026.01.05 @ 14:23:00 Sessions 3 Manual Loads 0 Difficulty Rogue Special Mode None Game No. 423 Rogue 418 Adventurer 4 Explorer 1 Win Type - Total 26 Types 14/5/1/2/0/1/0/0/2/1 Lore% 97 Gallery% 95 Achievement% 82 Wizard Run 0 Options --------- Layout 0 ASCII 0 Keyboard 0 Movement Numpad Keybinds 0 Fullscreen 2 Font 18/SmallcapsGlow Map View 76x50 Zoom Use 0% Tactical HUD 1 Map Filters NONE Filters NONE Steam 1 RUN: f2a7751f-089a-412e-ade9-b6c223a5f295